Publisher Label,Publisher URI,"Supplier","Invoice ","Amount (£)","Purpose","Transaction Number","Payment Date","Organisational Unit","Cost Centre(T)","Internal category number"
"Wolverhampton City Council","http://opendatacommunities.org/id/metropolitan-district-council/wolverhampton","S.S. Sidhu","398","155.71","Books","130156387","15/02/2017","Library Services","Reference Library","R4309"
"Wolverhampton City Council","http://opendatacommunities.org/id/metropolitan-district-council/wolverhampton","Safeaid Services","6792","1,400.00","Materials","130158461","15/02/2017","School Planning & Resources","Towers Outdoor Education Centre","R4007"
"Wolverhampton City Council","http://opendatacommunities.org/id/metropolitan-district-council/wolverhampton","Sanctuary Personnel Limited","INV00132242","100","Agency Staff","130158856","22/02/2017","Older People Assessment & Care Management","Older People Assessment & Care Management","R1100"
"Wolverhampton City Council","http://opendatacommunities.org/id/metropolitan-district-council/wolverhampton","Sanctuary Personnel Limited","INV00132243","990","Agency Staff","130158669","22/02/2017","Older People Assessment & Care Management","Older People Assessment & Care Management","R1100"
"Wolverhampton City Council","http://opendatacommunities.org/id/metropolitan-district-council/wolverhampton","Sandwell Mbc","124001233","1,000.00","Training Expenses","130155088","12/02/2017","Human Resources","Workforce Development","R1650"
"Wolverhampton City Council","http://opendatacommunities.org/id/metropolitan-district-council/wolverhampton","Sandwell Mbc","105003193","26,855.00","Services - Professional Fees","130153975","03/02/2017","Strategic Finance","Strategic Finance","R4400"
"Wolverhampton City Council","http://opendatacommunities.org/id/metropolitan-district-council/wolverhampton","Sandwell Mbc(Sandwell Business Syst)","386001357","3,291.71","Agency Staff","130155089","17/02/2017","Library Services","Global Budgets","R1100"
"Wolverhampton City Council","http://opendatacommunities.org/id/metropolitan-district-council/wolverhampton","Sandwell Mbc(Sandwell Business Syst)","108000244","9,375.00","Services - Professional Fees","130153805","03/02/2017","Audit Services","Audit Services","R4400"
"Wolverhampton City Council","http://opendatacommunities.org/id/metropolitan-district-council/wolverhampton","Sandwell Mbc(Sandwell Business Syst)","108000242","11,875.00","Services - Professional Fees","130153803","03/02/2017","Audit Services","Audit Services","R4400"
"Wolverhampton City Council","http://opendatacommunities.org/id/metropolitan-district-council/wolverhampton","Sandwell Mbc(Sandwell Business Syst)","108000243","9,375.00","Services - Professional Fees","130153804","03/02/2017","Audit Services","Audit Services","R4400"
"Wolverhampton City Council","http://opendatacommunities.org/id/metropolitan-district-council/wolverhampton","Schneider Electric Limited","97375689","1,225.92","R&M - Departmental planned (internal)","130152671","01/02/2017","Facilities Management","Civic Centre","R2000"
"Wolverhampton City Council","http://opendatacommunities.org/id/metropolitan-district-council/wolverhampton","Scope","P131933 08011720170215","17,644.00","TPP - Residential Care - Short Term","190311984","17/02/2017","Learning Disability Assessment & Care Management","LD Care Purchasing (Spot Placements)","R5401"
"Wolverhampton City Council","http://opendatacommunities.org/id/metropolitan-district-council/wolverhampton","Scope","P131933 08011720170215","17,243.00","TPP - Residential Care - Short Term","190311984","17/02/2017","Learning Disability Assessment & Care Management","LD Care Purchasing (Spot Placements)","R5401"
"Wolverhampton City Council","http://opendatacommunities.org/id/metropolitan-district-council/wolverhampton","Scribes Plus Limited","9405","357.5","Materials","130156389","24/02/2017","Bereavement Services","Crematorium","R4007"
"Wolverhampton City Council","http://opendatacommunities.org/id/metropolitan-district-council/wolverhampton","Secom PLC","1174110","101","Fixtures and Fittings - R&M","130159565","22/02/2017","Visitor Economy","Bantock House Museum","R2502"
"Wolverhampton City Council","http://opendatacommunities.org/id/metropolitan-district-council/wolverhampton","Capita Treasury Solutions Limited","6002003789","17,000.00","Services - Professional Fees","130154157","12/02/2017","Corporate Accounts","Treasury Management","R4400"
"Wolverhampton City Council","http://opendatacommunities.org/id/metropolitan-district-council/wolverhampton","Security Plus Limited","590713","119.52","Services - Security","130155587","22/02/2017","Parking Services","Car Parks Operational Staff","R4405"
"Wolverhampton City Council","http://opendatacommunities.org/id/metropolitan-district-council/wolverhampton","Security Plus Limited","17980","-74.7","Services - Security","130156601","22/02/2017","Parking Services","Car Parks Operational Staff","R4405"
"Wolverhampton City Council","http://opendatacommunities.org/id/metropolitan-district-council/wolverhampton","Security Plus Limited","587464","18.92","Services - Security","130153226","22/02/2017","Leisure Services","Bert Williams Leisure Centre","R4405"
"Wolverhampton City Council","http://opendatacommunities.org/id/metropolitan-district-council/wolverhampton","Security Plus Limited","578232","28.38","Services - Security","130145520","01/02/2017","Visitor Economy","Civic Halls Non-Direct Event Management Account","R4405"
"Wolverhampton City Council","http://opendatacommunities.org/id/metropolitan-district-council/wolverhampton","Security Plus Limited","584248","66.22","Services - Security","130157305","15/02/2017","Visitor Economy","Civic Halls Non-Direct Event Management Account","R4405"
"Wolverhampton City Council","http://opendatacommunities.org/id/metropolitan-district-council/wolverhampton","Security Plus Limited","590031","3,053.94","Services - Security","130158857","22/02/2017","The Hub","Cash in Transit (Operational Finance)","R4405"
"Wolverhampton City Council","http://opendatacommunities.org/id/metropolitan-district-council/wolverhampton","Seesaws Day Nursery","15800","372","TPP - Child Care provided for client","130157556","12/02/2017","Child Protection","CIN/CP S17  SW Unit - Area 2","R5034"
"Wolverhampton City Council","http://opendatacommunities.org/id/metropolitan-district-council/wolverhampton","Select & Save Wolverhampton Limited","WANEWS 034","85.15","Books","130158670","17/02/2017","Library Services","Warstones Library","R4309"
"Wolverhampton City Council","http://opendatacommunities.org/id/metropolitan-district-council/wolverhampton","Select Alarm Systems Limited","82755","99","Fixtures and Fittings - R&M","130155588","01/02/2017","Facilities Management","Management of Vacant Properties","R2502"
"Wolverhampton City Council","http://opendatacommunities.org/id/metropolitan-district-council/wolverhampton","Sellick Partnership Group Limited","INV182096","1,782.00","Agency Staff","130156961","12/02/2017","Legal Services","Legal Services","R1100"
"Wolverhampton City Council","http://opendatacommunities.org/id/metropolitan-district-council/wolverhampton","Sellick Partnership Group Limited","INV182783","1,738.00","Agency Staff","130158270","17/02/2017","Legal Services","Legal Services","R1100"
"Wolverhampton City Council","http://opendatacommunities.org/id/metropolitan-district-council/wolverhampton","Sellick Partnership Group Limited","INV183317","1,013.84","Agency Staff","130158671","17/02/2017","Legal Services","Legal Services","R1100"
"Wolverhampton City Council","http://opendatacommunities.org/id/metropolitan-district-council/wolverhampton","Sellick Partnership Group Limited","INV183318","877.8","Agency Staff","130158672","17/02/2017","Legal Services","Legal Services","R1100"
"Wolverhampton City Council","http://opendatacommunities.org/id/metropolitan-district-council/wolverhampton","Sellick Partnership Group Limited","INV181317","994.08","Agency Staff","130155589","03/02/2017","Legal Services","Legal Services","R1100"
"Wolverhampton City Council","http://opendatacommunities.org/id/metropolitan-district-council/wolverhampton","Sellick Partnership Group Limited","INV181371","1,683.00","Agency Staff","130155590","03/02/2017","Legal Services","Legal Services","R1100"
"Wolverhampton City Council","http://opendatacommunities.org/id/metropolitan-district-council/wolverhampton","Sellick Partnership Group Limited","INV180676","1,848.00","Agency Staff","130154524","01/02/2017","Legal Services","Legal Services","R1100"
"Wolverhampton City Council","http://opendatacommunities.org/id/metropolitan-district-council/wolverhampton","Senwod Contracting Limited","SI -10152","600","Grounds Maintenance - Contract","130154882","08/02/2017","Environmental Maintenance","Ground Maintenance East","R2075"
"Wolverhampton City Council","http://opendatacommunities.org/id/metropolitan-district-council/wolverhampton","Senwod Contracting Limited","SI -10188","4,430.00","Grounds Maintenance - Contract","130159566","24/02/2017","Environmental Maintenance","Ground Maintenance East","R2075"
"Wolverhampton City Council","http://opendatacommunities.org/id/metropolitan-district-council/wolverhampton","Senwod Contracting Limited","SI 10192","1,460.00","Grounds Maintenance - Contract","130159567","22/02/2017","Environmental Maintenance","Ground Maintenance East","R2075"
"Wolverhampton City Council","http://opendatacommunities.org/id/metropolitan-district-council/wolverhampton","Senwod Contracting Limited","SI - 10184","4,450.00","Grounds Maintenance - Contract","130157974","17/02/2017","Environmental Maintenance","Ground Maintenance East","R2075"
"Wolverhampton City Council","http://opendatacommunities.org/id/metropolitan-district-council/wolverhampton","Senwod Contracting Limited","SI 10146","675","R&M - Departmental response (external)","130157557","15/02/2017","Environmental Maintenance","Parks - South West Area Management","R2003"
"Wolverhampton City Council","http://opendatacommunities.org/id/metropolitan-district-council/wolverhampton","Senwod Contracting Limited","SI 10149","850","R&M - Departmental response (external)","130157558","12/02/2017","Environmental Maintenance","Parks - East Area Management","R2003"
"Wolverhampton City Council","http://opendatacommunities.org/id/metropolitan-district-council/wolverhampton","Senwod Contracting Limited","SI-10182","1,950.00","Grounds Maintenance - Contract","130156962","22/02/2017","Environmental Maintenance","Ground Maintenance West","R2075"
"Wolverhampton City Council","http://opendatacommunities.org/id/metropolitan-district-council/wolverhampton","Senwod Contracting Limited","SI-10162","3,900.00","Grounds Maintenance - Contract","130154883","08/02/2017","Environmental Maintenance","Ground Maintenance East","R2075"
"Wolverhampton City Council","http://opendatacommunities.org/id/metropolitan-district-council/wolverhampton","Services4Schools Ltd","3374","250","Services - Fees and Charges","130153229","01/02/2017","Early Intervention","EIP Locality 5 � Whitmore Reans","R4401"
"Wolverhampton City Council","http://opendatacommunities.org/id/metropolitan-district-council/wolverhampton","Services4Schools Ltd","3739","75","Training Expenses","130153230","01/02/2017","Early Intervention","EIP Locality 5 � Whitmore Reans","R1650"
"Wolverhampton City Council","http://opendatacommunities.org/id/metropolitan-district-council/wolverhampton","Severn Trent Water Limited","ST0174-5020088053","183.21","Water Charges","190312643","17/02/2017","Housing Revenue Account","Hostels / Outreach","R2400"
"Wolverhampton City Council","http://opendatacommunities.org/id/metropolitan-district-council/wolverhampton","Severn Trent Water Limited","ST0181-8930219418","183.21","Water Charges","190312669","17/02/2017","Housing Revenue Account","Hostels / Outreach","R2400"
"Wolverhampton City Council","http://opendatacommunities.org/id/metropolitan-district-council/wolverhampton","Severn Trent Water Limited","ST0172-2240070666","183.21","Water Charges","190312641","17/02/2017","Housing Revenue Account","Hostels / Outreach","R2400"
"Wolverhampton City Council","http://opendatacommunities.org/id/metropolitan-district-council/wolverhampton","Severn Trent Water Limited","540198231","20,068.46","Water Charges","190313838","22/02/2017","Corporate Asset Management","Central Utilities to Recharge","R2400"
"Wolverhampton City Council","http://opendatacommunities.org/id/metropolitan-district-council/wolverhampton","Severn Trent Water Limited","INV00089967","103.44","Water Charges","190313839","22/02/2017","Corporate Asset Management","Central Utilities to Recharge","R2400"
"Wolverhampton City Council","http://opendatacommunities.org/id/metropolitan-district-council/wolverhampton","Severn Trent Water Limited","INV00120641","178.96","Water Charges","190313834","22/02/2017","Corporate Asset Management","Central Utilities to Recharge","R2400"
"Wolverhampton City Council","http://opendatacommunities.org/id/metropolitan-district-council/wolverhampton","Severn Trent Water Limited","832089034","4,652.23","Water Charges","190313835","22/02/2017","Corporate Asset Management","Central Utilities to Recharge","R2400"
"Wolverhampton City Council","http://opendatacommunities.org/id/metropolitan-district-council/wolverhampton","Severn Trent Water Limited","INV00105516","32","Water Charges","190313836","22/02/2017","Corporate Asset Management","Central Utilities to Recharge","R2400"
"Wolverhampton City Council","http://opendatacommunities.org/id/metropolitan-district-council/wolverhampton","Severn Trent Water Limited","INV00106115","3,623.99","Water Charges","190313837","22/02/2017","Corporate Asset Management","Central Utilities to Recharge","R2400"
"Wolverhampton City Council","http://opendatacommunities.org/id/metropolitan-district-council/wolverhampton","Severn Trent Water Limited","476093817","486.72","Water Charges","190306905","01/02/2017","Corporate Asset Management","Central Utilities to Recharge","R2400"
"Wolverhampton City Council","http://opendatacommunities.org/id/metropolitan-district-council/wolverhampton","Severn Trent Water Limited","INV00080128","358.4","Water Charges","190306903","01/02/2017","Corporate Asset Management","Central Utilities to Recharge","R2400"
"Wolverhampton City Council","http://opendatacommunities.org/id/metropolitan-district-council/wolverhampton","Severn Trent Water Limited","INV00055670","29.18","Water Charges","190306901","01/02/2017","Corporate Asset Management","Central Utilities to Recharge","R2400"
"Wolverhampton City Council","http://opendatacommunities.org/id/metropolitan-district-council/wolverhampton","Severn Trent Water Limited","INV00062941","967","Water Charges","190306902","01/02/2017","Corporate Asset Management","Central Utilities to Recharge","R2400"
"Wolverhampton City Council","http://opendatacommunities.org/id/metropolitan-district-council/wolverhampton","Severn Trent Water Limited","149069872","121.25","Water Charges","190306904","01/02/2017","Corporate Asset Management","Central Utilities to Recharge","R2400"
"Wolverhampton City Council","http://opendatacommunities.org/id/metropolitan-district-council/wolverhampton","Severn Trent Water Limited","8310500493  779142339","125.51","Water Charges","130153628","01/02/2017","Environmental Maintenance","Allotments","R2400"
"Wolverhampton City Council","http://opendatacommunities.org/id/metropolitan-district-council/wolverhampton","Severn Trent Water Limited","989171954","2,054.36","Water Charges","130154525","12/02/2017","Environmental Maintenance","Allotments","R2400"
"Wolverhampton City Council","http://opendatacommunities.org/id/metropolitan-district-council/wolverhampton","Severn Trent Water Limited","ST0176-8090076440","172.49","Water Charges","190312664","17/02/2017","Housing Revenue Account","Hostels / Outreach","R2400"
"Wolverhampton City Council","http://opendatacommunities.org/id/metropolitan-district-council/wolverhampton","Severn Trent Water Limited","ST0170-8312312255","7.79","Water Charges","190311497","15/02/2017","Housing Revenue Account","Hostels / Outreach","R2400"
"Wolverhampton City Council","http://opendatacommunities.org/id/metropolitan-district-council/wolverhampton","Severn Trent Water Limited","ST0179-9800025951","172.49","Water Charges","190312667","17/02/2017","Housing Revenue Account","Hostels / Outreach","R2400"
"Wolverhampton City Council","http://opendatacommunities.org/id/metropolitan-district-council/wolverhampton","Severn Trent Water Limited","ST0180-9270115814","128.32","Water Charges","190312668","17/02/2017","Housing Revenue Account","Hostels / Outreach","R2400"
"Wolverhampton City Council","http://opendatacommunities.org/id/metropolitan-district-council/wolverhampton","Severn Trent Water Limited","ST0175-3950037117","172.49","Water Charges","190312644","17/02/2017","Housing Revenue Account","Hostels / Outreach","R2400"
"Wolverhampton City Council","http://opendatacommunities.org/id/metropolitan-district-council/wolverhampton","Severn Trent Water Limited","ST0177-7760052660","186.13","Water Charges","190312665","17/02/2017","Housing Revenue Account","Hostels / Outreach","R2400"
"Wolverhampton City Council","http://opendatacommunities.org/id/metropolitan-district-council/wolverhampton","Severn Trent Water Limited","ST0178-8950027891","215.38","Water Charges","190312666","17/02/2017","Housing Revenue Account","Hostels / Outreach","R2400"
"Wolverhampton City Council","http://opendatacommunities.org/id/metropolitan-district-council/wolverhampton","Severn Trent Water Limited","ST0182-9180094712","186.13","Water Charges","190312670","17/02/2017","Housing Revenue Account","Hostels / Outreach","R2400"
"Wolverhampton City Council","http://opendatacommunities.org/id/metropolitan-district-council/wolverhampton","Severn Trent Water Limited","ST0171-2040031178","172.49","Water Charges","190312640","17/02/2017","Housing Revenue Account","Hostels / Outreach","R2400"
"Wolverhampton City Council","http://opendatacommunities.org/id/metropolitan-district-council/wolverhampton","Severn Trent Water Limited","ST0173-2420102005","186.13","Water Charges","190312642","17/02/2017","Housing Revenue Account","Hostels / Outreach","R2400"
"Wolverhampton City Council","http://opendatacommunities.org/id/metropolitan-district-council/wolverhampton","SG World Limited","30721464","355","Equipment - Purchase","130157307","17/02/2017","Early Intervention","EIP Locality 7 � Low Hill","R4000"
"Wolverhampton City Council","http://opendatacommunities.org/id/metropolitan-district-council/wolverhampton","SG World Limited","30721342","2,794.70","Equipment - Purchase","130157306","15/02/2017","Early Intervention","EIP Locality 7 � Low Hill","R4000"
"Wolverhampton City Council","http://opendatacommunities.org/id/metropolitan-district-council/wolverhampton","Shropshire Council","HHA001308","5,535.20","Client Transport - SEN","130159304","22/02/2017","School Planning & Resources","Special - Transport","R3043"
"Wolverhampton City Council","http://opendatacommunities.org/id/metropolitan-district-council/wolverhampton","Shropshire Council","HHA0 012 9 0","5,453.80","Client Transport - SEN","130159303","22/02/2017","School Planning & Resources","Special - Transport","R3043"
"Wolverhampton City Council","http://opendatacommunities.org/id/metropolitan-district-council/wolverhampton","Shropshire Council","HHA001270","1,782.00","Client Transport - SEN","130158271","15/02/2017","School Planning & Resources","Special - Transport","R3043"
"Wolverhampton City Council","http://opendatacommunities.org/id/metropolitan-district-council/wolverhampton","Shropshire Council","HHA001267","4,151.40","Client Transport - SEN","130156603","12/02/2017","School Planning & Resources","Special - Transport","R3043"
"Wolverhampton City Council","http://opendatacommunities.org/id/metropolitan-district-council/wolverhampton","Sico Europe Limited","INV0110258","87","Equipment - R & M","130155591","01/02/2017","Catering","Education Catering - General Overheads","R4003"
"Wolverhampton City Council","http://opendatacommunities.org/id/metropolitan-district-council/wolverhampton","Signpost Solutions Limited T/A Signfix","235026","1,800.00","Materials","130155592","15/02/2017","Street Lighting","Signs Illuminated","R4007"
"Wolverhampton City Council","http://opendatacommunities.org/id/metropolitan-district-council/wolverhampton","Signpost Solutions Limited T/A Signfix","235324","157.5","Materials","130157308","12/02/2017","Street Lighting","Street Lighting Maintenance","R4007"
"Wolverhampton City Council","http://opendatacommunities.org/id/metropolitan-district-council/wolverhampton","Signpost Solutions Limited T/A Signfix","235324","45.55","Materials","130157308","12/02/2017","Street Lighting","Street Lighting Maintenance","R4007"
"Wolverhampton City Council","http://opendatacommunities.org/id/metropolitan-district-council/wolverhampton","Signpost Solutions Limited T/A Signfix","235324","13.75","Materials","130157308","12/02/2017","Street Lighting","Street Lighting Maintenance","R4007"
"Wolverhampton City Council","http://opendatacommunities.org/id/metropolitan-district-council/wolverhampton","Signs Now UK","INV/270/7314","221","Signage and Labels","130159080","24/02/2017","Adult Education","Foyer Building","R4009"
"Wolverhampton City Council","http://opendatacommunities.org/id/metropolitan-district-council/wolverhampton","Simmonsigns Limited","72795","3,238.25","Materials","130154743","15/02/2017","Street Lighting","Signs Illuminated","R4007"
"Wolverhampton City Council","http://opendatacommunities.org/id/metropolitan-district-council/wolverhampton","SUEZ Recycling & Recovery (formly Sita UK )","80049264","5,402.80","TPP - Waste Disposal","130157439","12/02/2017","Environmental Maintenance","Ground Maintenance East","R5003"
"Wolverhampton City Council","http://opendatacommunities.org/id/metropolitan-district-council/wolverhampton","SUEZ Recycling & Recovery (formly Sita UK )","80049264","179.4","TPP - Waste Disposal","130157439","12/02/2017","Environmental Maintenance","Ground Maintenance West","R5003"
"Wolverhampton City Council","http://opendatacommunities.org/id/metropolitan-district-council/wolverhampton","SUEZ Recycling & Recovery (formly Sita UK )","80049264","366.6","TPP - Waste Disposal","130157439","12/02/2017","Highways Maintenance","Gully Sweeping","R5003"
"Wolverhampton City Council","http://opendatacommunities.org/id/metropolitan-district-council/wolverhampton","SUEZ Recycling & Recovery (formly Sita UK )","80044812","9,778.60","TPP - Waste Disposal","130150650","08/02/2017","Environmental Maintenance","Ground Maintenance East","R5003"
"Wolverhampton City Council","http://opendatacommunities.org/id/metropolitan-district-council/wolverhampton","SUEZ Recycling & Recovery (formly Sita UK )","80044812","422.5","TPP - Waste Disposal","130150650","08/02/2017","Environmental Maintenance","Ground Maintenance West","R5003"
"Wolverhampton City Council","http://opendatacommunities.org/id/metropolitan-district-council/wolverhampton","SUEZ Recycling & Recovery (formly Sita UK )","80044812","604.5","TPP - Waste Disposal","130150650","08/02/2017","Highways Maintenance","Gully Sweeping","R5003"
"Wolverhampton City Council","http://opendatacommunities.org/id/metropolitan-district-council/wolverhampton","Orbis Protect Ltd","B0834515","65.76","Service Charges","130128115","12/02/2017","Public Protection","Regulatory Services - Works in Default","R2205"
"Wolverhampton City Council","http://opendatacommunities.org/id/metropolitan-district-council/wolverhampton","Orbis Protect Ltd","B0837767","32.88","Service Charges","130132301","15/02/2017","Public Protection","Regulatory Services - Works in Default","R2205"
"Wolverhampton City Council","http://opendatacommunities.org/id/metropolitan-district-council/wolverhampton","SJ Cleaning (Midlands) Limited","WCC 1617/12","4,483.00","Window Cleaning","130157559","12/02/2017","Facilities Management","Civic Centre","R2701"
"Wolverhampton City Council","http://opendatacommunities.org/id/metropolitan-district-council/wolverhampton","Slough Borough Council Town Hall","8210000369","9,000.00","TPP - Payments to Local Authorities","130155804","01/02/2017","Looked After Children","Adoption and Residence Team & Allowances","R5100"
"Wolverhampton City Council","http://opendatacommunities.org/id/metropolitan-district-council/wolverhampton","Solihull M B C","P13669420170220","800","Grant Payments to Individuals","190313799","22/02/2017","Looked After Children","LAC Education Team (LACE)","R6402"
"Wolverhampton City Council","http://opendatacommunities.org/id/metropolitan-district-council/wolverhampton","Solihull M B C","P13669420170220","800","Grant Payments to Individuals","190313799","22/02/2017","Looked After Children","LAC Education Team (LACE)","R6402"
"Wolverhampton City Council","http://opendatacommunities.org/id/metropolitan-district-council/wolverhampton","Solihull Metropolitan B C","95679","12,007.00","TPP - Payments to Local Authorities","130143026","01/02/2017","Standards and Vulnerable Pupils","SEN Education OOC","R5100"
"Wolverhampton City Council","http://opendatacommunities.org/id/metropolitan-district-council/wolverhampton","Southern Electric PLC","SSE0188-2473180416","22.3","Electricity","190311500","15/02/2017","Housing Revenue Account","Hostels / Outreach","R2100"
"Wolverhampton City Council","http://opendatacommunities.org/id/metropolitan-district-council/wolverhampton","Southern Electric PLC","SSE0184-9115220415","53.14","Electricity","190306886","01/02/2017","Housing Revenue Account","Hostels / Outreach","R2100"
"Wolverhampton City Council","http://opendatacommunities.org/id/metropolitan-district-council/wolverhampton","Southern Electric PLC","SSE0185-261647822/0005","161.29","Electricity","190306887","01/02/2017","Housing Revenue Account","Hostels / Outreach","R2100"
"Wolverhampton City Council","http://opendatacommunities.org/id/metropolitan-district-council/wolverhampton","Southern Electric PLC","SSE0187-751651350/0005","240.82","Electricity","190306889","01/02/2017","Housing Revenue Account","Hostels / Outreach","R2100"
"Wolverhampton City Council","http://opendatacommunities.org/id/metropolitan-district-council/wolverhampton","Southern Electric PLC","SSE0186-311650008/0009","55.11","Electricity","190306888","01/02/2017","Housing Revenue Account","Hostels / Outreach","R2100"
"Wolverhampton City Council","http://opendatacommunities.org/id/metropolitan-district-council/wolverhampton","Southern Electric PLC","8.81574E+12","-375.4","Electricity","190314314","24/02/2017","Operation & Maintenance of Existing Network","Rechargeable Works to Capital - Contract Annual Costs","R2100"
"Wolverhampton City Council","http://opendatacommunities.org/id/metropolitan-district-council/wolverhampton","Southern Electric PLC","8.81574E+12","-412.81","Electricity","190314315","24/02/2017","Operation & Maintenance of Existing Network","Rechargeable Works to Capital - Contract Annual Costs","R2100"
"Wolverhampton City Council","http://opendatacommunities.org/id/metropolitan-district-council/wolverhampton","Southern Electric PLC","9.8148E+12","1,705.80","Electricity","190314311","24/02/2017","Corporate Asset Management","Central Utilities to Recharge","R2100"
"Wolverhampton City Council","http://opendatacommunities.org/id/metropolitan-district-council/wolverhampton","Southern Electric PLC","4.41574E+12","-140.1","Electricity","190314312","24/02/2017","Corporate Asset Management","Central Utilities to Recharge","R2100"
"Wolverhampton City Council","http://opendatacommunities.org/id/metropolitan-district-council/wolverhampton","Southern Electric PLC","8.81574E+12","-425.28","Electricity","190314313","24/02/2017","Operation & Maintenance of Existing Network","Rechargeable Works to Capital - Contract Annual Costs","R2100"
"Wolverhampton City Council","http://opendatacommunities.org/id/metropolitan-district-council/wolverhampton","Southern Electric PLC","8.81574E+12","-375.4","Electricity","190314316","24/02/2017","Operation & Maintenance of Existing Network","Rechargeable Works to Capital - Contract Annual Costs","R2100"
"Wolverhampton City Council","http://opendatacommunities.org/id/metropolitan-district-council/wolverhampton","Southern Electric PLC","8.81574E+12","-387.87","Electricity","190314317","24/02/2017","Operation & Maintenance of Existing Network","Rechargeable Works to Capital - Contract Annual Costs","R2100"
"Wolverhampton City Council","http://opendatacommunities.org/id/metropolitan-district-council/wolverhampton","Southern Electric PLC","8.81574E+12","-425.11","Electricity","190314318","24/02/2017","Operation & Maintenance of Existing Network","Rechargeable Works to Capital - Contract Annual Costs","R2100"
"Wolverhampton City Council","http://opendatacommunities.org/id/metropolitan-district-council/wolverhampton","Southern Electric PLC","8.81574E+12","-375.23","Electricity","190314319","24/02/2017","Operation & Maintenance of Existing Network","Rechargeable Works to Capital - Contract Annual Costs","R2100"
"Wolverhampton City Council","http://opendatacommunities.org/id/metropolitan-district-council/wolverhampton","Southern Electric PLC","8.81574E+12","-362.77","Electricity","190314320","24/02/2017","Operation & Maintenance of Existing Network","Rechargeable Works to Capital - Contract Annual Costs","R2100"
"Wolverhampton City Council","http://opendatacommunities.org/id/metropolitan-district-council/wolverhampton","Southern Electric PLC","8.81574E+12","-437.56","Electricity","190314321","24/02/2017","Operation & Maintenance of Existing Network","Rechargeable Works to Capital - Contract Annual Costs","R2100"
"Wolverhampton City Council","http://opendatacommunities.org/id/metropolitan-district-council/wolverhampton","Southern Electric PLC","8.81574E+12","-375.23","Electricity","190314322","24/02/2017","Operation & Maintenance of Existing Network","Rechargeable Works to Capital - Contract Annual Costs","R2100"
"Wolverhampton City Council","http://opendatacommunities.org/id/metropolitan-district-council/wolverhampton","Southern Electric PLC","8.81574E+12","-48.91","Electricity","190314323","24/02/2017","Operation & Maintenance of Existing Network","Rechargeable Works to Capital - Contract Annual Costs","R2100"
"Wolverhampton City Council","http://opendatacommunities.org/id/metropolitan-district-council/wolverhampton","Southern Electric PLC","8.81574E+12","-64.3","Electricity","190314324","24/02/2017","Operation & Maintenance of Existing Network","Rechargeable Works to Capital - Contract Annual Costs","R2100"
"Wolverhampton City Council","http://opendatacommunities.org/id/metropolitan-district-council/wolverhampton","Southern Electric PLC","8.81574E+12","22.42","Electricity","190314325","24/02/2017","Operation & Maintenance of Existing Network","Rechargeable Works to Capital - Contract Annual Costs","R2100"
"Wolverhampton City Council","http://opendatacommunities.org/id/metropolitan-district-council/wolverhampton","Southern Electric PLC","8.81574E+12","20.93","Electricity","190314326","24/02/2017","Operation & Maintenance of Existing Network","Rechargeable Works to Capital - Contract Annual Costs","R2100"
"Wolverhampton City Council","http://opendatacommunities.org/id/metropolitan-district-council/wolverhampton","Southern Electric PLC","8.81574E+12","20.72","Electricity","190314327","24/02/2017","Operation & Maintenance of Existing Network","Rechargeable Works to Capital - Contract Annual Costs","R2100"
"Wolverhampton City Council","http://opendatacommunities.org/id/metropolitan-district-council/wolverhampton","Southern Electric PLC","8.81574E+12","21.98","Electricity","190314328","24/02/2017","Operation & Maintenance of Existing Network","Rechargeable Works to Capital - Contract Annual Costs","R2100"
"Wolverhampton City Council","http://opendatacommunities.org/id/metropolitan-district-council/wolverhampton","Southern Electric PLC","8.81574E+12","20.41","Electricity","190314329","24/02/2017","Operation & Maintenance of Existing Network","Rechargeable Works to Capital - Contract Annual Costs","R2100"
"Wolverhampton City Council","http://opendatacommunities.org/id/metropolitan-district-council/wolverhampton","Southern Electric PLC","8.81574E+12","20.72","Electricity","190314330","24/02/2017","Operation & Maintenance of Existing Network","Rechargeable Works to Capital - Contract Annual Costs","R2100"
"Wolverhampton City Council","http://opendatacommunities.org/id/metropolitan-district-council/wolverhampton","Southern Electric PLC","8.81574E+12","21.66","Electricity","190314331","24/02/2017","Operation & Maintenance of Existing Network","Rechargeable Works to Capital - Contract Annual Costs","R2100"
"Wolverhampton City Council","http://opendatacommunities.org/id/metropolitan-district-council/wolverhampton","Southern Electric PLC","8.81574E+12","21.04","Electricity","190314332","24/02/2017","Operation & Maintenance of Existing Network","Rechargeable Works to Capital - Contract Annual Costs","R2100"
"Wolverhampton City Council","http://opendatacommunities.org/id/metropolitan-district-council/wolverhampton","Southern Electric PLC","8.81574E+12","20.72","Electricity","190314333","24/02/2017","Operation & Maintenance of Existing Network","Rechargeable Works to Capital - Contract Annual Costs","R2100"
"Wolverhampton City Council","http://opendatacommunities.org/id/metropolitan-district-council/wolverhampton","Southern Electric PLC","8.81574E+12","21.46","Electricity","190314334","24/02/2017","Operation & Maintenance of Existing Network","Rechargeable Works to Capital - Contract Annual Costs","R2100"
"Wolverhampton City Council","http://opendatacommunities.org/id/metropolitan-district-council/wolverhampton","Southern Electric PLC","8.81574E+12","20.72","Electricity","190314335","24/02/2017","Operation & Maintenance of Existing Network","Rechargeable Works to Capital - Contract Annual Costs","R2100"
"Wolverhampton City Council","http://opendatacommunities.org/id/metropolitan-district-council/wolverhampton","Southern Electric PLC","8.81574E+12","25.86","Electricity","190314336","24/02/2017","Operation & Maintenance of Existing Network","Rechargeable Works to Capital - Contract Annual Costs","R2100"
"Wolverhampton City Council","http://opendatacommunities.org/id/metropolitan-district-council/wolverhampton","Southern Electric PLC","8.81574E+12","13.62","Electricity","190314337","24/02/2017","Operation & Maintenance of Existing Network","Rechargeable Works to Capital - Contract Annual Costs","R2100"
"Wolverhampton City Council","http://opendatacommunities.org/id/metropolitan-district-council/wolverhampton","Southern Electric PLC","1.41498E+12","1,052.28","Electricity","190314338","24/02/2017","Schools","Bushbury Hill Primary School","R2100"
"Wolverhampton City Council","http://opendatacommunities.org/id/metropolitan-district-council/wolverhampton","Southern Electric PLC","8.31482E+12","237.77","Electricity","190314296","24/02/2017","Corporate Asset Management","Central Utilities to Recharge","R2100"
"Wolverhampton City Council","http://opendatacommunities.org/id/metropolitan-district-council/wolverhampton","Southern Electric PLC","6.7148E+12","267.54","Electricity","190314297","24/02/2017","Corporate Asset Management","Central Utilities to Recharge","R2100"
"Wolverhampton City Council","http://opendatacommunities.org/id/metropolitan-district-council/wolverhampton","Southern Electric PLC","1.01656E+12","120.41","Electricity","190314298","24/02/2017","Corporate Asset Management","Central Utilities to Recharge","R2100"
"Wolverhampton City Council","http://opendatacommunities.org/id/metropolitan-district-council/wolverhampton","Southern Electric PLC","3.71481E+12","456.43","Electricity","190314299","24/02/2017","Corporate Asset Management","Central Utilities to Recharge","R2100"
"Wolverhampton City Council","http://opendatacommunities.org/id/metropolitan-district-council/wolverhampton","Southern Electric PLC","6.21658E+12","24.82","Electricity","190314294","24/02/2017","Corporate Asset Management","Central Utilities to Recharge","R2100"
"Wolverhampton City Council","http://opendatacommunities.org/id/metropolitan-district-council/wolverhampton","Southern Electric PLC","3.16576E+11","67.65","Electricity","190314295","24/02/2017","Corporate Asset Management","Central Utilities to Recharge","R2100"
"Wolverhampton City Council","http://opendatacommunities.org/id/metropolitan-district-council/wolverhampton","Southern Electric PLC","6.7148E+12","177.66","Electricity","190314300","24/02/2017","Corporate Asset Management","Central Utilities to Recharge","R2100"
"Wolverhampton City Council","http://opendatacommunities.org/id/metropolitan-district-council/wolverhampton","Southern Electric PLC","1.21562E+12","938.73","Electricity","190314301","24/02/2017","Corporate Asset Management","Central Utilities to Recharge","R2100"
"Wolverhampton City Council","http://opendatacommunities.org/id/metropolitan-district-council/wolverhampton","Southern Electric PLC","6.01482E+12","769.12","Electricity","190314302","24/02/2017","Corporate Asset Management","Central Utilities to Recharge","R2100"
"Wolverhampton City Council","http://opendatacommunities.org/id/metropolitan-district-council/wolverhampton","Southern Electric PLC","8.81526E+12","1,374.28","Electricity","190314303","24/02/2017","Corporate Asset Management","Central Utilities to Recharge","R2100"
"Wolverhampton City Council","http://opendatacommunities.org/id/metropolitan-district-council/wolverhampton","Southern Electric PLC","9.8148E+12","1,535.48","Electricity","190314304","24/02/2017","Corporate Asset Management","Central Utilities to Recharge","R2100"
"Wolverhampton City Council","http://opendatacommunities.org/id/metropolitan-district-council/wolverhampton","Southern Electric PLC","9.41552E+12","16.74","Electricity","190314290","24/02/2017","Corporate Asset Management","Central Utilities to Recharge","R2100"
"Wolverhampton City Council","http://opendatacommunities.org/id/metropolitan-district-council/wolverhampton","Southern Electric PLC","4.61573E+12","19.12","Electricity","190314291","24/02/2017","Corporate Asset Management","Central Utilities to Recharge","R2100"
"Wolverhampton City Council","http://opendatacommunities.org/id/metropolitan-district-council/wolverhampton","Southern Electric PLC","4.41574E+12","70.34","Electricity","190314292","24/02/2017","Corporate Asset Management","Central Utilities to Recharge","R2100"
"Wolverhampton City Council","http://opendatacommunities.org/id/metropolitan-district-council/wolverhampton","Southern Electric PLC","6.51659E+12","80.54","Electricity","190314293","24/02/2017","Corporate Asset Management","Central Utilities to Recharge","R2100"
"Wolverhampton City Council","http://opendatacommunities.org/id/metropolitan-district-council/wolverhampton","Southern Electric PLC","5.21585E+12","1,094.92","Electricity","190314305","24/02/2017","Corporate Asset Management","Central Utilities to Recharge","R2100"
"Wolverhampton City Council","http://opendatacommunities.org/id/metropolitan-district-council/wolverhampton","Southern Electric PLC","8.31482E+12","-2,351.34","Electricity","190314306","24/02/2017","Corporate Asset Management","Central Utilities to Recharge","R2100"
"Wolverhampton City Council","http://opendatacommunities.org/id/metropolitan-district-council/wolverhampton","Southern Electric PLC","8.81526E+12","2,230.83","Electricity","190314307","24/02/2017","Corporate Asset Management","Central Utilities to Recharge","R2100"
"Wolverhampton City Council","http://opendatacommunities.org/id/metropolitan-district-council/wolverhampton","Southern Electric PLC","3.71481E+12","4,040.94","Electricity","190314308","24/02/2017","Corporate Asset Management","Central Utilities to Recharge","R2100"
"Wolverhampton City Council","http://opendatacommunities.org/id/metropolitan-district-council/wolverhampton","Southern Electric PLC","7.61526E+12","2,874.41","Electricity","190314309","24/02/2017","Corporate Asset Management","Central Utilities to Recharge","R2100"
"Wolverhampton City Council","http://opendatacommunities.org/id/metropolitan-district-council/wolverhampton","Southern Electric PLC","3.71481E+12","3,048.76","Electricity","190314310","24/02/2017","Corporate Asset Management","Central Utilities to Recharge","R2100"
"Wolverhampton City Council","http://opendatacommunities.org/id/metropolitan-district-council/wolverhampton","Specialised Tools & Equipment Limited","79982","115","Materials","130155805","03/02/2017","Environmental Maintenance","Street Cleansing East","R4007"
"Wolverhampton City Council","http://opendatacommunities.org/id/metropolitan-district-council/wolverhampton","Specialised Tools & Equipment Limited","80378","597.25","Materials","130159570","22/02/2017","Environmental Maintenance","Ground Maintenance West","R4007"
"Wolverhampton City Council","http://opendatacommunities.org/id/metropolitan-district-council/wolverhampton","Specialised Tools & Equipment Limited","80378","479.5","Materials","130159570","22/02/2017","Environmental Maintenance","Ground Maintenance West","R4007"
"Wolverhampton City Council","http://opendatacommunities.org/id/metropolitan-district-council/wolverhampton","Specialised Tools & Equipment Limited","80008","305","Materials","130156117","08/02/2017","Environmental Maintenance","Arbor Scheme","R4007"
"Wolverhampton City Council","http://opendatacommunities.org/id/metropolitan-district-council/wolverhampton","Specialised Tools & Equipment Limited","80008","39.5","Materials","130156117","08/02/2017","Environmental Maintenance","Arbor Scheme","R4007"
"Wolverhampton City Council","http://opendatacommunities.org/id/metropolitan-district-council/wolverhampton","Specialised Tools & Equipment Limited","80017","200","Materials","130156118","15/02/2017","Environmental Maintenance","Ground Maintenance West","R4007"
"Wolverhampton City Council","http://opendatacommunities.org/id/metropolitan-district-council/wolverhampton","Specialised Tools & Equipment Limited","79878","434.46","Materials","130154884","01/02/2017","Environmental Maintenance","Graffiti Removal Team","R4007"
"Wolverhampton City Council","http://opendatacommunities.org/id/metropolitan-district-council/wolverhampton","Speedy Asset Services Limited","7107995638","52.8","Equipment - Hire","130152899","08/02/2017","Highways Maintenance","Patching","R4001"
"Wolverhampton City Council","http://opendatacommunities.org/id/metropolitan-district-council/wolverhampton","Speedy Asset Services Limited","7108209710","82","Equipment - Hire","130155593","03/02/2017","Street Lighting","Street Lighting Maintenance","R4001"
"Wolverhampton City Council","http://opendatacommunities.org/id/metropolitan-district-council/wolverhampton","Speedy Asset Services Limited","7108364321","52.8","Equipment - Hire","130157579","12/02/2017","Highways Maintenance","Patching","R4001"
"Wolverhampton City Council","http://opendatacommunities.org/id/metropolitan-district-council/wolverhampton","Speedy Asset Services Limited","7108362852","37.03","Equipment - Hire","130157569","12/02/2017","Highways Maintenance","Patching","R4001"
"Wolverhampton City Council","http://opendatacommunities.org/id/metropolitan-district-council/wolverhampton","Speedy Asset Services Limited","7108362852","15.77","Equipment - Hire","130157569","12/02/2017","Highways Maintenance","Planned Highways Maintenance","R4001"
"Wolverhampton City Council","http://opendatacommunities.org/id/metropolitan-district-council/wolverhampton","Speedy Asset Services Limited","7108362859","37.03","Equipment - Hire","130157570","12/02/2017","Highways Maintenance","Patching","R4001"
"Wolverhampton City Council","http://opendatacommunities.org/id/metropolitan-district-council/wolverhampton","Speedy Asset Services Limited","7108362859","15.77","Equipment - Hire","130157570","12/02/2017","Highways Maintenance","Planned Highways Maintenance","R4001"
"Wolverhampton City Council","http://opendatacommunities.org/id/metropolitan-district-council/wolverhampton","Speedy Asset Services Limited","7108362866","37.03","Equipment - Hire","130157571","12/02/2017","Highways Maintenance","Patching","R4001"
"Wolverhampton City Council","http://opendatacommunities.org/id/metropolitan-district-council/wolverhampton","Speedy Asset Services Limited","7108362866","15.77","Equipment - Hire","130157571","12/02/2017","Highways Maintenance","Planned Highways Maintenance","R4001"
"Wolverhampton City Council","http://opendatacommunities.org/id/metropolitan-district-council/wolverhampton","Speedy Asset Services Limited","7108363484","17.25","Equipment - Hire","130157574","12/02/2017","Highways Maintenance","Patching","R4001"
"Wolverhampton City Council","http://opendatacommunities.org/id/metropolitan-district-council/wolverhampton","Speedy Asset Services Limited","7108363484","7.35","Equipment - Hire","130157574","12/02/2017","Highways Maintenance","Planned Highways Maintenance","R4001"
"Wolverhampton City Council","http://opendatacommunities.org/id/metropolitan-district-council/wolverhampton","Speedy Asset Services Limited","7108362802","54.47","Equipment - Hire","130157566","12/02/2017","Highways Maintenance","Patching","R4001"
"Wolverhampton City Council","http://opendatacommunities.org/id/metropolitan-district-council/wolverhampton","Speedy Asset Services Limited","7108361940","28.51","Equipment - Hire","130157562","12/02/2017","Highways Maintenance","Patching","R4001"
"Wolverhampton City Council","http://opendatacommunities.org/id/metropolitan-district-council/wolverhampton","Speedy Asset Services Limited","7108362841","294.15","Equipment - Hire","130157568","12/02/2017","Highways Maintenance","Patching","R4001"
"Wolverhampton City Council","http://opendatacommunities.org/id/metropolitan-district-council/wolverhampton","Speedy Asset Services Limited","7108363546","257.4","Equipment - Hire","130157575","12/02/2017","Highways Maintenance","Patching","R4001"
"Wolverhampton City Council","http://opendatacommunities.org/id/metropolitan-district-council/wolverhampton","Speedy Asset Services Limited","7108362809","113.78","Equipment - Hire","130157567","12/02/2017","Highways Maintenance","Patching","R4001"
"Wolverhampton City Council","http://opendatacommunities.org/id/metropolitan-district-council/wolverhampton","Speedy Asset Services Limited","7108364315","54.52","Equipment - Hire","130157578","12/02/2017","Highways Maintenance","Patching","R4001"
"Wolverhampton City Council","http://opendatacommunities.org/id/metropolitan-district-council/wolverhampton","Speedy Asset Services Limited","7108361926","54.52","Equipment - Hire","130157560","12/02/2017","Highways Maintenance","Patching","R4001"
"Wolverhampton City Council","http://opendatacommunities.org/id/metropolitan-district-council/wolverhampton","Speedy Asset Services Limited","7108361948","54.47","Equipment - Hire","130157563","12/02/2017","Highways Maintenance","Patching","R4001"
"Wolverhampton City Council","http://opendatacommunities.org/id/metropolitan-district-council/wolverhampton","Speedy Asset Services Limited","7108361953","54.47","Equipment - Hire","130157564","12/02/2017","Highways Maintenance","Patching","R4001"
"Wolverhampton City Council","http://opendatacommunities.org/id/metropolitan-district-council/wolverhampton","Speedy Asset Services Limited","7108364331","52.8","Equipment - Hire","130157580","12/02/2017","Highways Maintenance","Patching","R4001"
"Wolverhampton City Council","http://opendatacommunities.org/id/metropolitan-district-council/wolverhampton","Speedy Asset Services Limited","7107010864","54.47","Hire of Plant","130140660","01/02/2017","Highways Maintenance","Patching","R3201"
"Wolverhampton City Council","http://opendatacommunities.org/id/metropolitan-district-council/wolverhampton","Speedy Asset Services Limited","7108361961","114.4","Equipment - Hire","130157975","15/02/2017","Highways Maintenance","Patching","R4001"
"Wolverhampton City Council","http://opendatacommunities.org/id/metropolitan-district-council/wolverhampton","Speedy Asset Services Limited","7108364351","107.27","Equipment - Hire","130157582","15/02/2017","Highways Maintenance","Patching","R4001"
"Wolverhampton City Council","http://opendatacommunities.org/id/metropolitan-district-council/wolverhampton","Speedy Asset Services Limited","7108361967","113.78","Equipment - Hire","130157565","15/02/2017","Highways Maintenance","Patching","R4001"
"Wolverhampton City Council","http://opendatacommunities.org/id/metropolitan-district-council/wolverhampton","Speedy Asset Services Limited","7108364311","88","Equipment - Hire","130157577","15/02/2017","Highways Maintenance","Patching","R4001"
"Wolverhampton City Council","http://opendatacommunities.org/id/metropolitan-district-council/wolverhampton","Speedy Asset Services Limited","7108364302","88","Equipment - Hire","130157576","15/02/2017","Highways Maintenance","Patching","R4001"
"Wolverhampton City Council","http://opendatacommunities.org/id/metropolitan-district-council/wolverhampton","Speedy Asset Services Limited","7108361933","54.5","Equipment - Hire","130157561","15/02/2017","Highways Maintenance","Patching","R4001"
"Wolverhampton City Council","http://opendatacommunities.org/id/metropolitan-district-council/wolverhampton","Speedy Asset Services Limited","7108364340","103.49","Equipment - Hire","130157581","15/02/2017","Highways Maintenance","Patching","R4001"
"Wolverhampton City Council","http://opendatacommunities.org/id/metropolitan-district-council/wolverhampton","Speedy Asset Services Limited","7108363477","84.85","Equipment - Hire","130157573","15/02/2017","Highways Maintenance","Patching","R4001"
"Wolverhampton City Council","http://opendatacommunities.org/id/metropolitan-district-council/wolverhampton","Speedy Asset Services Limited","7108363477","36.15","Equipment - Hire","130157573","15/02/2017","Highways Maintenance","Planned Highways Maintenance","R4001"
"Wolverhampton City Council","http://opendatacommunities.org/id/metropolitan-district-council/wolverhampton","Speedy Asset Services Limited","7108362870","84.85","Equipment - Hire","130157572","15/02/2017","Highways Maintenance","Patching","R4001"
"Wolverhampton City Council","http://opendatacommunities.org/id/metropolitan-district-council/wolverhampton","Speedy Asset Services Limited","7108362870","36.15","Equipment - Hire","130157572","15/02/2017","Highways Maintenance","Planned Highways Maintenance","R4001"
"Wolverhampton City Council","http://opendatacommunities.org/id/metropolitan-district-council/wolverhampton","St Albans Church D.C.C","2017007","90","Room Hire","130157310","17/02/2017","Adult Education","Creative Studies Delivery Area","R2201"
"Wolverhampton City Council","http://opendatacommunities.org/id/metropolitan-district-council/wolverhampton","St Columba�S Church Day Centre","45/5220170214","41.86","TPP - Day Care","190311719","15/02/2017","Older People Assessment & Care Management","OP Care Purchasing (Spot Placements)","R5430"
"Wolverhampton City Council","http://opendatacommunities.org/id/metropolitan-district-council/wolverhampton","St Columba�S Church Day Centre","45/5220170214","20.93","TPP - Day Care","190311719","15/02/2017","Older People Assessment & Care Management","OP Care Purchasing (Spot Placements)","R5430"
"Wolverhampton City Council","http://opendatacommunities.org/id/metropolitan-district-council/wolverhampton","St Columba�S Church Day Centre","45/5220170214","41.86","TPP - Day Care","190311719","15/02/2017","Older People Assessment & Care Management","OP Care Purchasing (Spot Placements)","R5430"
"Wolverhampton City Council","http://opendatacommunities.org/id/metropolitan-district-council/wolverhampton","St Columba�S Church Day Centre","45/5220170214","20.93","TPP - Day Care","190311719","15/02/2017","Older People Assessment & Care Management","OP Care Purchasing (Spot Placements)","R5430"
"Wolverhampton City Council","http://opendatacommunities.org/id/metropolitan-district-council/wolverhampton","St Columba�S Church Day Centre","45/5220170214","20.93","TPP - Day Care","190311719","15/02/2017","Older People Assessment & Care Management","OP Care Purchasing (Spot Placements)","R5430"
"Wolverhampton City Council","http://opendatacommunities.org/id/metropolitan-district-council/wolverhampton","St Columba�S Church Day Centre","45/5220170214","20.93","TPP - Day Care","190311719","15/02/2017","Older People Assessment & Care Management","OP Care Purchasing (Spot Placements)","R5430"
"Wolverhampton City Council","http://opendatacommunities.org/id/metropolitan-district-council/wolverhampton","St Columba�S Church Day Centre","45/5220170214","41.86","TPP - Day Care","190311719","15/02/2017","Older People Assessment & Care Management","OP Care Purchasing (Spot Placements)","R5430"
"Wolverhampton City Council","http://opendatacommunities.org/id/metropolitan-district-council/wolverhampton","St Columba�S Church Day Centre","45/5220170214","20.93","TPP - Day Care","190311719","15/02/2017","Older People Assessment & Care Management","OP Care Purchasing (Spot Placements)","R5430"
"Wolverhampton City Council","http://opendatacommunities.org/id/metropolitan-district-council/wolverhampton","St Columba�S Church Day Centre","45/5220170214","41.86","TPP - Day Care","190311719","15/02/2017","Older People Assessment & Care Management","OP Care Purchasing (Spot Placements)","R5430"
"Wolverhampton City Council","http://opendatacommunities.org/id/metropolitan-district-council/wolverhampton","St Columba�S Church Day Centre","43/5220170130","20.93","TPP - Day Care","190306603","01/02/2017","Older People Assessment & Care Management","OP Care Purchasing (Spot Placements)","R5430"
"Wolverhampton City Council","http://opendatacommunities.org/id/metropolitan-district-council/wolverhampton","St Columba�S Church Day Centre","43/5220170130","20.93","TPP - Day Care","190306603","01/02/2017","Older People Assessment & Care Management","OP Care Purchasing (Spot Placements)","R5430"
"Wolverhampton City Council","http://opendatacommunities.org/id/metropolitan-district-council/wolverhampton","St Columba�S Church Day Centre","43/5220170130","20.93","TPP - Day Care","190306603","01/02/2017","Older People Assessment & Care Management","OP Care Purchasing (Spot Placements)","R5430"
"Wolverhampton City Council","http://opendatacommunities.org/id/metropolitan-district-council/wolverhampton","St Columba�S Church Day Centre","43/5220170130","41.86","TPP - Day Care","190306603","01/02/2017","Older People Assessment & Care Management","OP Care Purchasing (Spot Placements)","R5430"
"Wolverhampton City Council","http://opendatacommunities.org/id/metropolitan-district-council/wolverhampton","St Columba�S Church Day Centre","43/5220170130","20.93","TPP - Day Care","190306603","01/02/2017","Older People Assessment & Care Management","OP Care Purchasing (Spot Placements)","R5430"
"Wolverhampton City Council","http://opendatacommunities.org/id/metropolitan-district-council/wolverhampton","St Columba�S Church Day Centre","43/5220170130","41.86","TPP - Day Care","190306603","01/02/2017","Older People Assessment & Care Management","OP Care Purchasing (Spot Placements)","R5430"
"Wolverhampton City Council","http://opendatacommunities.org/id/metropolitan-district-council/wolverhampton","St Columba�S Church Day Centre","43/5220170130","20.93","TPP - Day Care","190306603","01/02/2017","Older People Assessment & Care Management","OP Care Purchasing (Spot Placements)","R5430"
"Wolverhampton City Council","http://opendatacommunities.org/id/metropolitan-district-council/wolverhampton","St Columba�S Church Day Centre","43/5220170130","41.86","TPP - Day Care","190306603","01/02/2017","Older People Assessment & Care Management","OP Care Purchasing (Spot Placements)","R5430"
"Wolverhampton City Council","http://opendatacommunities.org/id/metropolitan-district-council/wolverhampton","St Columba�S Church Day Centre","43/5220170130","20.93","TPP - Day Care","190306603","01/02/2017","Older People Assessment & Care Management","OP Care Purchasing (Spot Placements)","R5430"
"Wolverhampton City Council","http://opendatacommunities.org/id/metropolitan-district-council/wolverhampton","St Columba�S Church Day Centre","43/5220170130","20.93","TPP - Day Care","190306603","01/02/2017","Older People Assessment & Care Management","OP Care Purchasing (Spot Placements)","R5430"
"Wolverhampton City Council","http://opendatacommunities.org/id/metropolitan-district-council/wolverhampton","St Columba�S Church Day Centre","43/5220170130","20.93","TPP - Day Care","190306603","01/02/2017","Older People Assessment & Care Management","OP Care Purchasing (Spot Placements)","R5430"
"Wolverhampton City Council","http://opendatacommunities.org/id/metropolitan-district-council/wolverhampton","St Columba�S Church Day Centre","43/5220170130","41.86","TPP - Day Care","190306603","01/02/2017","Older People Assessment & Care Management","OP Care Purchasing (Spot Placements)","R5430"
"Wolverhampton City Council","http://opendatacommunities.org/id/metropolitan-district-council/wolverhampton","St Columba�S Church Day Centre","43/5220170130","62.79","TPP - Day Care","190306603","01/02/2017","Older People Assessment & Care Management","OP Care Purchasing (Spot Placements)","R5430"
"Wolverhampton City Council","http://opendatacommunities.org/id/metropolitan-district-council/wolverhampton","St Columba�S Church Day Centre","43/5220170130","20.93","TPP - Day Care","190306603","01/02/2017","Older People Assessment & Care Management","OP Care Purchasing (Spot Placements)","R5430"
"Wolverhampton City Council","http://opendatacommunities.org/id/metropolitan-district-council/wolverhampton","St Columba�S Church Day Centre","43/5220170130","41.86","TPP - Day Care","190306603","01/02/2017","Older People Assessment & Care Management","OP Care Purchasing (Spot Placements)","R5430"
"Wolverhampton City Council","http://opendatacommunities.org/id/metropolitan-district-council/wolverhampton","St Columba�S Church Day Centre","43/5220170130","41.86","TPP - Day Care","190306603","01/02/2017","Older People Assessment & Care Management","OP Care Purchasing (Spot Placements)","R5430"
"Wolverhampton City Council","http://opendatacommunities.org/id/metropolitan-district-council/wolverhampton","St Columba�S Church Day Centre","43/5220170130","41.86","TPP - Day Care","190306603","01/02/2017","Older People Assessment & Care Management","OP Care Purchasing (Spot Placements)","R5430"
"Wolverhampton City Council","http://opendatacommunities.org/id/metropolitan-district-council/wolverhampton","St Columba�S Church Day Centre","43/5220170130","62.79","TPP - Day Care","190306603","01/02/2017","Older People Assessment & Care Management","OP Care Purchasing (Spot Placements)","R5430"
"Wolverhampton City Council","http://opendatacommunities.org/id/metropolitan-district-council/wolverhampton","St Columba�S Church Day Centre","43/5220170130","20.93","TPP - Day Care","190306603","01/02/2017","Older People Assessment & Care Management","OP Care Purchasing (Spot Placements)","R5430"
"Wolverhampton City Council","http://opendatacommunities.org/id/metropolitan-district-council/wolverhampton","St Columba�S Church Day Centre","43/5220170130","41.86","TPP - Day Care","190306603","01/02/2017","Older People Assessment & Care Management","OP Care Purchasing (Spot Placements)","R5430"
"Wolverhampton City Council","http://opendatacommunities.org/id/metropolitan-district-council/wolverhampton","St Columba�S Church Day Centre","43/5220170130","41.86","TPP - Day Care","190306603","01/02/2017","Older People Assessment & Care Management","OP Care Purchasing (Spot Placements)","R5430"
"Wolverhampton City Council","http://opendatacommunities.org/id/metropolitan-district-council/wolverhampton","St Columba�S Church Day Centre","43/5220170130","41.86","TPP - Day Care","190306603","01/02/2017","Older People Assessment & Care Management","OP Care Purchasing (Spot Placements)","R5430"
"Wolverhampton City Council","http://opendatacommunities.org/id/metropolitan-district-council/wolverhampton","St Columba�S Church Day Centre","43/5220170130","41.86","TPP - Day Care","190306603","01/02/2017","Older People Assessment & Care Management","OP Care Purchasing (Spot Placements)","R5430"
"Wolverhampton City Council","http://opendatacommunities.org/id/metropolitan-district-council/wolverhampton","St Columba�S Church Day Centre","43/5220170130","20.93","TPP - Day Care","190306603","01/02/2017","Older People Assessment & Care Management","OP Care Purchasing (Spot Placements)","R5430"
"Wolverhampton City Council","http://opendatacommunities.org/id/metropolitan-district-council/wolverhampton","St Columba�S Church Day Centre","43/5220170130","41.86","TPP - Day Care","190306603","01/02/2017","Older People Assessment & Care Management","OP Care Purchasing (Spot Placements)","R5430"
"Wolverhampton City Council","http://opendatacommunities.org/id/metropolitan-district-council/wolverhampton","St Columba�S Church Day Centre","43/5220170130","20.93","TPP - Day Care","190306603","01/02/2017","Older People Assessment & Care Management","OP Care Purchasing (Spot Placements)","R5430"
"Wolverhampton City Council","http://opendatacommunities.org/id/metropolitan-district-council/wolverhampton","St Columba�S Church Day Centre","43/5220170130","20.93","TPP - Day Care","190306603","01/02/2017","Older People Assessment & Care Management","OP Care Purchasing (Spot Placements)","R5430"
"Wolverhampton City Council","http://opendatacommunities.org/id/metropolitan-district-council/wolverhampton","St Columba�S Church Day Centre","43/5220170130","20.93","TPP - Day Care","190306603","01/02/2017","Older People Assessment & Care Management","OP Care Purchasing (Spot Placements)","R5430"
"Wolverhampton City Council","http://opendatacommunities.org/id/metropolitan-district-council/wolverhampton","St Columba�S Church Day Centre","44/5220170208","41.86","TPP - Day Care","190309951","12/02/2017","Older People Assessment & Care Management","OP Care Purchasing (Spot Placements)","R5430"
"Wolverhampton City Council","http://opendatacommunities.org/id/metropolitan-district-council/wolverhampton","St Columba�S Church Day Centre","44/5220170208","20.93","TPP - Day Care","190309951","12/02/2017","Older People Assessment & Care Management","OP Care Purchasing (Spot Placements)","R5430"
"Wolverhampton City Council","http://opendatacommunities.org/id/metropolitan-district-council/wolverhampton","St Columba�S Church Day Centre","44/5220170208","41.86","TPP - Day Care","190309951","12/02/2017","Older People Assessment & Care Management","OP Care Purchasing (Spot Placements)","R5430"
"Wolverhampton City Council","http://opendatacommunities.org/id/metropolitan-district-council/wolverhampton","St Columba�S Church Day Centre","44/5220170208","41.86","TPP - Day Care","190309951","12/02/2017","Older People Assessment & Care Management","OP Care Purchasing (Spot Placements)","R5430"
"Wolverhampton City Council","http://opendatacommunities.org/id/metropolitan-district-council/wolverhampton","St Columba�S Church Day Centre","44/5220170208","20.93","TPP - Day Care","190309951","12/02/2017","Older People Assessment & Care Management","OP Care Purchasing (Spot Placements)","R5430"
"Wolverhampton City Council","http://opendatacommunities.org/id/metropolitan-district-council/wolverhampton","St Columba�S Church Day Centre","44/5220170208","41.86","TPP - Day Care","190309951","12/02/2017","Older People Assessment & Care Management","OP Care Purchasing (Spot Placements)","R5430"
"Wolverhampton City Council","http://opendatacommunities.org/id/metropolitan-district-council/wolverhampton","St Columba�S Church Day Centre","44/5220170208","20.93","TPP - Day Care","190309951","12/02/2017","Older People Assessment & Care Management","OP Care Purchasing (Spot Placements)","R5430"
"Wolverhampton City Council","http://opendatacommunities.org/id/metropolitan-district-council/wolverhampton","St Columba�S Church Day Centre","44/5220170208","41.86","TPP - Day Care","190309951","12/02/2017","Older People Assessment & Care Management","OP Care Purchasing (Spot Placements)","R5430"
"Wolverhampton City Council","http://opendatacommunities.org/id/metropolitan-district-council/wolverhampton","St Columba�S Church Day Centre","44/5220170208","41.86","TPP - Day Care","190309951","12/02/2017","Older People Assessment & Care Management","OP Care Purchasing (Spot Placements)","R5430"
"Wolverhampton City Council","http://opendatacommunities.org/id/metropolitan-district-council/wolverhampton","St Columba�S Church Day Centre","44/5220170208","41.86","TPP - Day Care","190309951","12/02/2017","Older People Assessment & Care Management","OP Care Purchasing (Spot Placements)","R5430"
"Wolverhampton City Council","http://opendatacommunities.org/id/metropolitan-district-council/wolverhampton","St Columba�S Church Day Centre","44/5220170208","41.86","TPP - Day Care","190309951","12/02/2017","Older People Assessment & Care Management","OP Care Purchasing (Spot Placements)","R5430"
"Wolverhampton City Council","http://opendatacommunities.org/id/metropolitan-district-council/wolverhampton","St Columba�S Church Day Centre","44/5220170208","20.93","TPP - Day Care","190309951","12/02/2017","Older People Assessment & Care Management","OP Care Purchasing (Spot Placements)","R5430"
"Wolverhampton City Council","http://opendatacommunities.org/id/metropolitan-district-council/wolverhampton","St Columba�S Church Day Centre","44/5220170208","62.79","TPP - Day Care","190309951","12/02/2017","Older People Assessment & Care Management","OP Care Purchasing (Spot Placements)","R5430"
"Wolverhampton City Council","http://opendatacommunities.org/id/metropolitan-district-council/wolverhampton","St Columba�S Church Day Centre","44/5220170208","20.93","TPP - Day Care","190309951","12/02/2017","Older People Assessment & Care Management","OP Care Purchasing (Spot Placements)","R5430"
"Wolverhampton City Council","http://opendatacommunities.org/id/metropolitan-district-council/wolverhampton","St Columba�S Church Day Centre","44/5220170208","41.86","TPP - Day Care","190309951","12/02/2017","Older People Assessment & Care Management","OP Care Purchasing (Spot Placements)","R5430"
"Wolverhampton City Council","http://opendatacommunities.org/id/metropolitan-district-council/wolverhampton","St Columba�S Church Day Centre","44/5220170208","20.93","TPP - Day Care","190309951","12/02/2017","Older People Assessment & Care Management","OP Care Purchasing (Spot Placements)","R5430"
"Wolverhampton City Council","http://opendatacommunities.org/id/metropolitan-district-council/wolverhampton","St Columba�S Church Day Centre","44/5220170208","20.93","TPP - Day Care","190309951","12/02/2017","Older People Assessment & Care Management","OP Care Purchasing (Spot Placements)","R5430"
"Wolverhampton City Council","http://opendatacommunities.org/id/metropolitan-district-council/wolverhampton","St Columba�S Church Day Centre","44/5220170208","20.93","TPP - Day Care","190309951","12/02/2017","Older People Assessment & Care Management","OP Care Purchasing (Spot Placements)","R5430"
"Wolverhampton City Council","http://opendatacommunities.org/id/metropolitan-district-council/wolverhampton","St Columba�S Church Day Centre","44/5220170208","20.93","TPP - Day Care","190309951","12/02/2017","Older People Assessment & Care Management","OP Care Purchasing (Spot Placements)","R5430"
"Wolverhampton City Council","http://opendatacommunities.org/id/metropolitan-district-council/wolverhampton","St Columba�S Church Day Centre","44/5220170208","20.93","TPP - Day Care","190309951","12/02/2017","Older People Assessment & Care Management","OP Care Purchasing (Spot Placements)","R5430"
"Wolverhampton City Council","http://opendatacommunities.org/id/metropolitan-district-council/wolverhampton","St Columba�S Church Day Centre","44/5220170208","20.93","TPP - Day Care","190309951","12/02/2017","Older People Assessment & Care Management","OP Care Purchasing (Spot Placements)","R5430"
"Wolverhampton City Council","http://opendatacommunities.org/id/metropolitan-district-council/wolverhampton","St Columba�S Church Day Centre","44/5220170208","20.93","TPP - Day Care","190309951","12/02/2017","Older People Assessment & Care Management","OP Care Purchasing (Spot Placements)","R5430"
"Wolverhampton City Council","http://opendatacommunities.org/id/metropolitan-district-council/wolverhampton","St Columba�S Church Day Centre","44/5220170208","41.86","TPP - Day Care","190309951","12/02/2017","Older People Assessment & Care Management","OP Care Purchasing (Spot Placements)","R5430"
"Wolverhampton City Council","http://opendatacommunities.org/id/metropolitan-district-council/wolverhampton","St Columba�S Church Day Centre","44/5220170208","20.93","TPP - Day Care","190309951","12/02/2017","Older People Assessment & Care Management","OP Care Purchasing (Spot Placements)","R5430"
"Wolverhampton City Council","http://opendatacommunities.org/id/metropolitan-district-council/wolverhampton","St Columba�S Church Day Centre","44/5220170208","20.93","TPP - Day Care","190309951","12/02/2017","Older People Assessment & Care Management","OP Care Purchasing (Spot Placements)","R5430"
"Wolverhampton City Council","http://opendatacommunities.org/id/metropolitan-district-council/wolverhampton","St Columba�S Church Day Centre","44/5220170208","41.86","TPP - Day Care","190309951","12/02/2017","Older People Assessment & Care Management","OP Care Purchasing (Spot Placements)","R5430"
"Wolverhampton City Council","http://opendatacommunities.org/id/metropolitan-district-council/wolverhampton","St Columba�S Church Day Centre","44/5220170208","41.86","TPP - Day Care","190309951","12/02/2017","Older People Assessment & Care Management","OP Care Purchasing (Spot Placements)","R5430"
"Wolverhampton City Council","http://opendatacommunities.org/id/metropolitan-district-council/wolverhampton","St Columba�S Church Day Centre","44/5220170208","62.79","TPP - Day Care","190309951","12/02/2017","Older People Assessment & Care Management","OP Care Purchasing (Spot Placements)","R5430"
"Wolverhampton City Council","http://opendatacommunities.org/id/metropolitan-district-council/wolverhampton","St Columba�S Church Day Centre","45/5220170214","20.93","TPP - Day Care","190311719","15/02/2017","Older People Assessment & Care Management","OP Care Purchasing (Spot Placements)","R5430"
"Wolverhampton City Council","http://opendatacommunities.org/id/metropolitan-district-council/wolverhampton","St Columba�S Church Day Centre","45/5220170214","41.86","TPP - Day Care","190311719","15/02/2017","Older People Assessment & Care Management","OP Care Purchasing (Spot Placements)","R5430"
"Wolverhampton City Council","http://opendatacommunities.org/id/metropolitan-district-council/wolverhampton","St Columba�S Church Day Centre","45/5220170214","20.93","TPP - Day Care","190311719","15/02/2017","Older People Assessment & Care Management","OP Care Purchasing (Spot Placements)","R5430"
"Wolverhampton City Council","http://opendatacommunities.org/id/metropolitan-district-council/wolverhampton","St Columba�S Church Day Centre","45/5220170214","41.86","TPP - Day Care","190311719","15/02/2017","Older People Assessment & Care Management","OP Care Purchasing (Spot Placements)","R5430"
"Wolverhampton City Council","http://opendatacommunities.org/id/metropolitan-district-council/wolverhampton","St Columba�S Church Day Centre","45/5220170214","41.86","TPP - Day Care","190311719","15/02/2017","Older People Assessment & Care Management","OP Care Purchasing (Spot Placements)","R5430"
"Wolverhampton City Council","http://opendatacommunities.org/id/metropolitan-district-council/wolverhampton","St Columba�S Church Day Centre","45/5220170214","41.86","TPP - Day Care","190311719","15/02/2017","Older People Assessment & Care Management","OP Care Purchasing (Spot Placements)","R5430"
"Wolverhampton City Council","http://opendatacommunities.org/id/metropolitan-district-council/wolverhampton","St Columba�S Church Day Centre","45/5220170214","20.93","TPP - Day Care","190311719","15/02/2017","Older People Assessment & Care Management","OP Care Purchasing (Spot Placements)","R5430"
"Wolverhampton City Council","http://opendatacommunities.org/id/metropolitan-district-council/wolverhampton","St Columba�S Church Day Centre","45/5220170214","20.93","TPP - Day Care","190311719","15/02/2017","Older People Assessment & Care Management","OP Care Purchasing (Spot Placements)","R5430"
"Wolverhampton City Council","http://opendatacommunities.org/id/metropolitan-district-council/wolverhampton","St Columba�S Church Day Centre","45/5220170214","41.86","TPP - Day Care","190311719","15/02/2017","Older People Assessment & Care Management","OP Care Purchasing (Spot Placements)","R5430"
"Wolverhampton City Council","http://opendatacommunities.org/id/metropolitan-district-council/wolverhampton","St Columba�S Church Day Centre","45/5220170214","20.93","TPP - Day Care","190311719","15/02/2017","Older People Assessment & Care Management","OP Care Purchasing (Spot Placements)","R5430"
"Wolverhampton City Council","http://opendatacommunities.org/id/metropolitan-district-council/wolverhampton","St Columba�S Church Day Centre","45/5220170214","20.93","TPP - Day Care","190311719","15/02/2017","Older People Assessment & Care Management","OP Care Purchasing (Spot Placements)","R5430"
"Wolverhampton City Council","http://opendatacommunities.org/id/metropolitan-district-council/wolverhampton","St Columba�S Church Day Centre","45/5220170214","20.93","TPP - Day Care","190311719","15/02/2017","Older People Assessment & Care Management","OP Care Purchasing (Spot Placements)","R5430"
"Wolverhampton City Council","http://opendatacommunities.org/id/metropolitan-district-council/wolverhampton","St Columba�S Church Day Centre","45/5220170214","20.93","TPP - Day Care","190311719","15/02/2017","Older People Assessment & Care Management","OP Care Purchasing (Spot Placements)","R5430"
"Wolverhampton City Council","http://opendatacommunities.org/id/metropolitan-district-council/wolverhampton","St Columba�S Church Day Centre","45/5220170214","41.86","TPP - Day Care","190311719","15/02/2017","Older People Assessment & Care Management","OP Care Purchasing (Spot Placements)","R5430"
"Wolverhampton City Council","http://opendatacommunities.org/id/metropolitan-district-council/wolverhampton","St Columba�S Church Day Centre","45/5220170214","20.93","TPP - Day Care","190311719","15/02/2017","Older People Assessment & Care Management","OP Care Purchasing (Spot Placements)","R5430"
"Wolverhampton City Council","http://opendatacommunities.org/id/metropolitan-district-council/wolverhampton","St Columba�S Church Day Centre","45/5220170214","20.93","TPP - Day Care","190311719","15/02/2017","Older People Assessment & Care Management","OP Care Purchasing (Spot Placements)","R5430"
"Wolverhampton City Council","http://opendatacommunities.org/id/metropolitan-district-council/wolverhampton","St Columba�S Church Day Centre","45/5220170214","41.86","TPP - Day Care","190311719","15/02/2017","Older People Assessment & Care Management","OP Care Purchasing (Spot Placements)","R5430"
"Wolverhampton City Council","http://opendatacommunities.org/id/metropolitan-district-council/wolverhampton","St Columba�S Church Day Centre","45/5220170214","41.86","TPP - Day Care","190311719","15/02/2017","Older People Assessment & Care Management","OP Care Purchasing (Spot Placements)","R5430"
"Wolverhampton City Council","http://opendatacommunities.org/id/metropolitan-district-council/wolverhampton","St Columba�S Church Day Centre","45/5220170214","62.79","TPP - Day Care","190311719","15/02/2017","Older People Assessment & Care Management","OP Care Purchasing (Spot Placements)","R5430"
"Wolverhampton City Council","http://opendatacommunities.org/id/metropolitan-district-council/wolverhampton","St Mary�S Ce Primary School","P13669420170220","800","Grant Payments to Individuals","190313799","22/02/2017","Looked After Children","LAC Education Team (LACE)","R6402"
"Wolverhampton City Council","http://opendatacommunities.org/id/metropolitan-district-council/wolverhampton","St Thomas More School","P13669420170220","800","Grant Payments to Individuals","190313799","22/02/2017","Looked After Children","LAC Education Team (LACE)","R6402"
"Wolverhampton City Council","http://opendatacommunities.org/id/metropolitan-district-council/wolverhampton","St Thomas More School","P13669420170220","800","Grant Payments to Individuals","190313799","22/02/2017","Looked After Children","LAC Education Team (LACE)","R6402"
"Wolverhampton City Council","http://opendatacommunities.org/id/metropolitan-district-council/wolverhampton","Staffordshire County Council","7589","85.5","Services - Professional Fees","130157976","15/02/2017","Highways Maintenance","Winter Maintenance","R4400"
"Wolverhampton City Council","http://opendatacommunities.org/id/metropolitan-district-council/wolverhampton","Staffordshire County Council","8004145348","2,171.92","Client Transport - SEN","130158273","24/02/2017","School Planning & Resources","Special - Transport","R3043"
"Wolverhampton City Council","http://opendatacommunities.org/id/metropolitan-district-council/wolverhampton","Staffordshire County Council","8004145353","4,997.67","Client Transport - SEN","130158274","24/02/2017","School Planning & Resources","Special - Transport","R3043"
"Wolverhampton City Council","http://opendatacommunities.org/id/metropolitan-district-council/wolverhampton","Staffordshire County Council","8004145356","1,983.56","Client Transport - SEN","130158275","24/02/2017","School Planning & Resources","Special - Transport","R3043"
"Wolverhampton City Council","http://opendatacommunities.org/id/metropolitan-district-council/wolverhampton","Staffordshire County Council","8004145127","4,380.00","TPP - Payments to Local Authorities","130156391","12/02/2017","Standards and Vulnerable Pupils","SEN Education OOC","R5100"
"Wolverhampton City Council","http://opendatacommunities.org/id/metropolitan-district-council/wolverhampton","Staffordshire County Council","P13504420170127","123.4","TPP - Payments to voluntary groups","190306419","01/02/2017","Children With Disabilities","Childrens with Disabilities Team","R5200"
"Wolverhampton City Council","http://opendatacommunities.org/id/metropolitan-district-council/wolverhampton","Staffordshire County Council","P13504420170127","1,425.00","TPP - Residential Care - Short Term","190306419","01/02/2017","Children With Disabilities","Childrens with Disabilities Team","R5401"
"Wolverhampton City Council","http://opendatacommunities.org/id/metropolitan-district-council/wolverhampton","Staffordshire County Council","P13504420170127","771.45","Services - Professional Fees","190306419","01/02/2017","Children With Disabilities","Childrens with Disabilities Team","R4400"
"Wolverhampton City Council","http://opendatacommunities.org/id/metropolitan-district-council/wolverhampton","Staffordshire County Council","P13504420170127","61.7","TPP - Payments to voluntary groups","190306419","01/02/2017","Children With Disabilities","Childrens with Disabilities Team","R5200"
"Wolverhampton City Council","http://opendatacommunities.org/id/metropolitan-district-council/wolverhampton","Staffordshire County Council","P13504420170127","950","TPP - Residential Care - Short Term","190306419","01/02/2017","Children With Disabilities","Childrens with Disabilities Team","R5401"
"Wolverhampton City Council","http://opendatacommunities.org/id/metropolitan-district-council/wolverhampton","Staffordshire County Council","P13504420170127","542.1","Services - Professional Fees","190306419","01/02/2017","Children With Disabilities","Childrens with Disabilities Team","R4400"
"Wolverhampton City Council","http://opendatacommunities.org/id/metropolitan-district-council/wolverhampton","Staffordshire County Council","P13504420170127","61.7","TPP - Payments to voluntary groups","190306419","01/02/2017","Children With Disabilities","Childrens with Disabilities Team","R5200"
"Wolverhampton City Council","http://opendatacommunities.org/id/metropolitan-district-council/wolverhampton","Staffordshire County Council","P13504420170127","1,425.00","TPP - Residential Care - Short Term","190306419","01/02/2017","Children With Disabilities","Childrens with Disabilities Team","R5401"
"Wolverhampton City Council","http://opendatacommunities.org/id/metropolitan-district-council/wolverhampton","Staffordshire County Council","P13504420170127","750.6","Services - Professional Fees","190306419","01/02/2017","Children With Disabilities","Childrens with Disabilities Team","R4400"
"Wolverhampton City Council","http://opendatacommunities.org/id/metropolitan-district-council/wolverhampton","Staffordshire County Council","P13504420170127","475","TPP - Residential Care - Short Term","190306419","01/02/2017","Children With Disabilities","Childrens with Disabilities Team","R5401"
"Wolverhampton City Council","http://opendatacommunities.org/id/metropolitan-district-council/wolverhampton","Staffordshire County Council","P13504420170127","229.35","Services - Professional Fees","190306419","01/02/2017","Children With Disabilities","Childrens with Disabilities Team","R4400"
"Wolverhampton City Council","http://opendatacommunities.org/id/metropolitan-district-council/wolverhampton","Staffordshire County Council","P13504420170127","61.7","TPP - Payments to voluntary groups","190306419","01/02/2017","Children With Disabilities","Childrens with Disabilities Team","R5200"
"Wolverhampton City Council","http://opendatacommunities.org/id/metropolitan-district-council/wolverhampton","Staffordshire County Council","P13504420170127","1,425.00","TPP - Residential Care - Short Term","190306419","01/02/2017","Children With Disabilities","Childrens with Disabilities Team","R5401"
"Wolverhampton City Council","http://opendatacommunities.org/id/metropolitan-district-council/wolverhampton","Staffordshire County Council","P13504420170127","750.6","Services - Professional Fees","190306419","01/02/2017","Children With Disabilities","Childrens with Disabilities Team","R4400"
"Wolverhampton City Council","http://opendatacommunities.org/id/metropolitan-district-council/wolverhampton","Staffordshire County Council","P13504420170127","123.4","TPP - Payments to voluntary groups","190306419","01/02/2017","Children With Disabilities","Childrens with Disabilities Team","R5200"
"Wolverhampton City Council","http://opendatacommunities.org/id/metropolitan-district-council/wolverhampton","Staffordshire County Council","P13504420170127","475","TPP - Residential Care - Short Term","190306419","01/02/2017","Children With Disabilities","Childrens with Disabilities Team","R5401"
"Wolverhampton City Council","http://opendatacommunities.org/id/metropolitan-district-council/wolverhampton","Staffordshire County Council","P13504420170127","229.35","Services - Professional Fees","190306419","01/02/2017","Children With Disabilities","Childrens with Disabilities Team","R4400"
"Wolverhampton City Council","http://opendatacommunities.org/id/metropolitan-district-council/wolverhampton","Staffordshire County Council","P13504420170127","61.7","TPP - Payments to voluntary groups","190306419","01/02/2017","Children With Disabilities","Childrens with Disabilities Team","R5200"
"Wolverhampton City Council","http://opendatacommunities.org/id/metropolitan-district-council/wolverhampton","Staffordshire County Council","P13504420170127","1,425.00","TPP - Residential Care - Short Term","190306419","01/02/2017","Children With Disabilities","Childrens with Disabilities Team","R5401"
"Wolverhampton City Council","http://opendatacommunities.org/id/metropolitan-district-council/wolverhampton","Staffordshire County Council","P13504420170127","750.6","Services - Professional Fees","190306419","01/02/2017","Children With Disabilities","Childrens with Disabilities Team","R4400"
"Wolverhampton City Council","http://opendatacommunities.org/id/metropolitan-district-council/wolverhampton","Staffordshire County Council","P13504420170127","123.4","TPP - Payments to voluntary groups","190306419","01/02/2017","Children With Disabilities","Childrens with Disabilities Team","R5200"
"Wolverhampton City Council","http://opendatacommunities.org/id/metropolitan-district-council/wolverhampton","Staffordshire County Council","P13504420170127","208.5","TPP - Residential Care - Short Term","190306419","01/02/2017","Children With Disabilities","Childrens with Disabilities Team","R5401"
"Wolverhampton City Council","http://opendatacommunities.org/id/metropolitan-district-council/wolverhampton","Staffordshire County Council","P13504420170127","145.95","TPP - Residential Care - Short Term","190306419","01/02/2017","Children With Disabilities","Childrens with Disabilities Team","R5401"
"Wolverhampton City Council","http://opendatacommunities.org/id/metropolitan-district-council/wolverhampton","Staffordshire County Council","P13504420170127","145.95","TPP - Residential Care - Short Term","190306419","01/02/2017","Children With Disabilities","Childrens with Disabilities Team","R5401"
"Wolverhampton City Council","http://opendatacommunities.org/id/metropolitan-district-council/wolverhampton","Staffordshire County Council","P13504420170127","145.95","TPP - Residential Care - Short Term","190306419","01/02/2017","Children With Disabilities","Childrens with Disabilities Team","R5401"
"Wolverhampton City Council","http://opendatacommunities.org/id/metropolitan-district-council/wolverhampton","Staffordshire County Council","P13504420170127","458.7","Services - Professional Fees","190306419","01/02/2017","Children With Disabilities","Childrens with Disabilities Team","R4400"
"Wolverhampton City Council","http://opendatacommunities.org/id/metropolitan-district-council/wolverhampton","Staffordshire County Council","P13504420170127","1,425.00","TPP - Residential Care - Short Term","190306419","01/02/2017","Children With Disabilities","Childrens with Disabilities Team","R5401"
"Wolverhampton City Council","http://opendatacommunities.org/id/metropolitan-district-council/wolverhampton","Staffordshire County Council","P13504420170127","750.6","Services - Professional Fees","190306419","01/02/2017","Children With Disabilities","Childrens with Disabilities Team","R4400"
"Wolverhampton City Council","http://opendatacommunities.org/id/metropolitan-district-council/wolverhampton","Staffordshire County Council","P13504420170127","123.4","Services - Professional Fees","190306419","01/02/2017","Children With Disabilities","Childrens with Disabilities Team","R4400"
"Wolverhampton City Council","http://opendatacommunities.org/id/metropolitan-district-council/wolverhampton","Staffordshire County Council","P13504420170127","20","TPP - Payments to voluntary groups","190306419","01/02/2017","Children With Disabilities","Childrens with Disabilities Team","R5200"
"Wolverhampton City Council","http://opendatacommunities.org/id/metropolitan-district-council/wolverhampton","Staffordshire County Council","P13504420170127","20","TPP - Payments to voluntary groups","190306419","01/02/2017","Children With Disabilities","Childrens with Disabilities Team","R5200"
"Wolverhampton City Council","http://opendatacommunities.org/id/metropolitan-district-council/wolverhampton","Staffordshire County Council","P13504420170127","20","TPP - Payments to voluntary groups","190306419","01/02/2017","Children With Disabilities","Childrens with Disabilities Team","R5200"
"Wolverhampton City Council","http://opendatacommunities.org/id/metropolitan-district-council/wolverhampton","Staffordshire County Council","P13504420170127","20","TPP - Payments to voluntary groups","190306419","01/02/2017","Children With Disabilities","Childrens with Disabilities Team","R5200"
"Wolverhampton City Council","http://opendatacommunities.org/id/metropolitan-district-council/wolverhampton","Staffordshire County Council","P13504420170127","145.95","TPP - Residential Care - Short Term","190306419","01/02/2017","Children With Disabilities","Childrens with Disabilities Team","R5401"
"Wolverhampton City Council","http://opendatacommunities.org/id/metropolitan-district-council/wolverhampton","Staffordshire County Council","P13504420170127","145.95","TPP - Residential Care - Short Term","190306419","01/02/2017","Children With Disabilities","Childrens with Disabilities Team","R5401"
"Wolverhampton City Council","http://opendatacommunities.org/id/metropolitan-district-council/wolverhampton","Staffordshire County Council","P13504420170127","145.95","TPP - Residential Care - Short Term","190306419","01/02/2017","Children With Disabilities","Childrens with Disabilities Team","R5401"
"Wolverhampton City Council","http://opendatacommunities.org/id/metropolitan-district-council/wolverhampton","Staffordshire County Council","P13504420170127","208.5","TPP - Residential Care - Short Term","190306419","01/02/2017","Children With Disabilities","Childrens with Disabilities Team","R5401"
"Wolverhampton City Council","http://opendatacommunities.org/id/metropolitan-district-council/wolverhampton","Staffordshire County Council","P13504420170127","20","TPP - Payments to voluntary groups","190306419","01/02/2017","Children With Disabilities","Childrens with Disabilities Team","R5200"
"Wolverhampton City Council","http://opendatacommunities.org/id/metropolitan-district-council/wolverhampton","Staffordshire County Council","P13504420170127","20","TPP - Payments to voluntary groups","190306419","01/02/2017","Children With Disabilities","Childrens with Disabilities Team","R5200"
"Wolverhampton City Council","http://opendatacommunities.org/id/metropolitan-district-council/wolverhampton","Staffordshire County Council","P13504420170127","20","TPP - Payments to voluntary groups","190306419","01/02/2017","Children With Disabilities","Childrens with Disabilities Team","R5200"
"Wolverhampton City Council","http://opendatacommunities.org/id/metropolitan-district-council/wolverhampton","Staffordshire County Council","P13504420170127","950","TPP - Residential Care - Short Term","190306419","01/02/2017","Children With Disabilities","Childrens with Disabilities Team","R5401"
"Wolverhampton City Council","http://opendatacommunities.org/id/metropolitan-district-council/wolverhampton","Staffordshire County Council","P13504420170127","1,425.00","TPP - Residential Care - Short Term","190306419","01/02/2017","Children With Disabilities","Childrens with Disabilities Team","R5401"
"Wolverhampton City Council","http://opendatacommunities.org/id/metropolitan-district-council/wolverhampton","Staffordshire County Council","P13504420170127","750.6","Services - Professional Fees","190306419","01/02/2017","Children With Disabilities","Childrens with Disabilities Team","R4400"
"Wolverhampton City Council","http://opendatacommunities.org/id/metropolitan-district-council/wolverhampton","Staffordshire County Council","P13504420170127","123.4","TPP - Payments to voluntary groups","190306419","01/02/2017","Children With Disabilities","Childrens with Disabilities Team","R5200"
"Wolverhampton City Council","http://opendatacommunities.org/id/metropolitan-district-council/wolverhampton","Staffordshire County Council","P13504420170127","1,425.00","TPP - Residential Care - Short Term","190306419","01/02/2017","Children With Disabilities","Childrens with Disabilities Team","R5401"
"Wolverhampton City Council","http://opendatacommunities.org/id/metropolitan-district-council/wolverhampton","Staffordshire County Council","P13504420170127","750.6","Services - Professional Fees","190306419","01/02/2017","Children With Disabilities","Childrens with Disabilities Team","R4400"
"Wolverhampton City Council","http://opendatacommunities.org/id/metropolitan-district-council/wolverhampton","Staffordshire County Council","P13504420170127","123.4","TPP - Payments to voluntary groups","190306419","01/02/2017","Children With Disabilities","Childrens with Disabilities Team","R5200"
"Wolverhampton City Council","http://opendatacommunities.org/id/metropolitan-district-council/wolverhampton","Staffordshire County Council","P13504420170127","950","TPP - Residential Care - Short Term","190306419","01/02/2017","Children With Disabilities","Childrens with Disabilities Team","R5401"
"Wolverhampton City Council","http://opendatacommunities.org/id/metropolitan-district-council/wolverhampton","Staffordshire County Council","P13504420170127","479.55","Services - Professional Fees","190306419","01/02/2017","Children With Disabilities","Childrens with Disabilities Team","R4400"
"Wolverhampton City Council","http://opendatacommunities.org/id/metropolitan-district-council/wolverhampton","Staffordshire County Council","P13504420170127","123.4","TPP - Payments to voluntary groups","190306419","01/02/2017","Children With Disabilities","Childrens with Disabilities Team","R5200"
"Wolverhampton City Council","http://opendatacommunities.org/id/metropolitan-district-council/wolverhampton","Staffordshire County Council","P13504420170127","950","TPP - Residential Care - Short Term","190306419","01/02/2017","Children With Disabilities","Childrens with Disabilities Team","R5401"
"Wolverhampton City Council","http://opendatacommunities.org/id/metropolitan-district-council/wolverhampton","Staffordshire County Council","P13504420170127","562.95","Services - Professional Fees","190306419","01/02/2017","Children With Disabilities","Childrens with Disabilities Team","R4400"
"Wolverhampton City Council","http://opendatacommunities.org/id/metropolitan-district-council/wolverhampton","Staffordshire County Council","P13504420170127","20","TPP - Payments to voluntary groups","190306419","01/02/2017","Children With Disabilities","Childrens with Disabilities Team","R5200"
"Wolverhampton City Council","http://opendatacommunities.org/id/metropolitan-district-council/wolverhampton","Staffordshire County Council","P13504420170127","950","TPP - Residential Care - Short Term","190306419","01/02/2017","Children With Disabilities","Childrens with Disabilities Team","R5401"
"Wolverhampton City Council","http://opendatacommunities.org/id/metropolitan-district-council/wolverhampton","Staffordshire County Council","P13504420170127","562.95","Services - Professional Fees","190306419","01/02/2017","Children With Disabilities","Childrens with Disabilities Team","R4400"
"Wolverhampton City Council","http://opendatacommunities.org/id/metropolitan-district-council/wolverhampton","Staffordshire County Council","P13504420170127","20","Services - Professional Fees","190306419","01/02/2017","Children With Disabilities","Childrens with Disabilities Team","R4400"
"Wolverhampton City Council","http://opendatacommunities.org/id/metropolitan-district-council/wolverhampton","Staffordshire County Council","P13504420170127","950","TPP - Residential Care - Short Term","190306419","01/02/2017","Children With Disabilities","Childrens with Disabilities Team","R5401"
"Wolverhampton City Council","http://opendatacommunities.org/id/metropolitan-district-council/wolverhampton","Staffordshire County Council","P13504420170127","521.25","Services - Professional Fees","190306419","01/02/2017","Children With Disabilities","Childrens with Disabilities Team","R4400"
"Wolverhampton City Council","http://opendatacommunities.org/id/metropolitan-district-council/wolverhampton","Staffordshire County Council","P13504420170127","40","TPP - Payments to voluntary groups","190306419","01/02/2017","Children With Disabilities","Childrens with Disabilities Team","R5200"
"Wolverhampton City Council","http://opendatacommunities.org/id/metropolitan-district-council/wolverhampton","Staffordshire County Council","P13504420170127","1,425.00","TPP - Residential Care - Short Term","190306419","01/02/2017","Children With Disabilities","Childrens with Disabilities Team","R5401"
"Wolverhampton City Council","http://opendatacommunities.org/id/metropolitan-district-council/wolverhampton","Staffordshire County Council","P13504420170127","771.45","Services - Professional Fees","190306419","01/02/2017","Children With Disabilities","Childrens with Disabilities Team","R4400"
"Wolverhampton City Council","http://opendatacommunities.org/id/metropolitan-district-council/wolverhampton","Staffordshire County Council","P13504420170127","123.4","TPP - Payments to voluntary groups","190306419","01/02/2017","Children With Disabilities","Childrens with Disabilities Team","R5200"
"Wolverhampton City Council","http://opendatacommunities.org/id/metropolitan-district-council/wolverhampton","Staffordshire County Council","P13504420170127","1,425.00","TPP - Residential Care - Short Term","190306419","01/02/2017","Children With Disabilities","Childrens with Disabilities Team","R5401"
"Wolverhampton City Council","http://opendatacommunities.org/id/metropolitan-district-council/wolverhampton","Staffordshire County Council","P13504420170127","750.6","Services - Professional Fees","190306419","01/02/2017","Children With Disabilities","Childrens with Disabilities Team","R4400"
"Wolverhampton City Council","http://opendatacommunities.org/id/metropolitan-district-council/wolverhampton","Staffordshire County Council","P13504420170127","123.4","TPP - Payments to voluntary groups","190306419","01/02/2017","Children With Disabilities","Childrens with Disabilities Team","R5200"
"Wolverhampton City Council","http://opendatacommunities.org/id/metropolitan-district-council/wolverhampton","Staffordshire County Council","P13504420170127","1,425.00","TPP - Residential Care - Short Term","190306419","01/02/2017","Children With Disabilities","Childrens with Disabilities Team","R5401"
"Wolverhampton City Council","http://opendatacommunities.org/id/metropolitan-district-council/wolverhampton","Staffordshire County Council","P13504420170127","750.6","Services - Professional Fees","190306419","01/02/2017","Children With Disabilities","Childrens with Disabilities Team","R4400"
"Wolverhampton City Council","http://opendatacommunities.org/id/metropolitan-district-council/wolverhampton","Staffordshire County Council","8004145159","7,047.84","TPP - Payments to Local Authorities","130158862","22/02/2017","Standards and Vulnerable Pupils","SEN Education OOC","R5100"
"Wolverhampton City Council","http://opendatacommunities.org/id/metropolitan-district-council/wolverhampton","Staffordshire County Council","8004145163","2,640.40","TPP - Payments to Local Authorities","130158272","17/02/2017","Standards and Vulnerable Pupils","SEN Education OOC","R5100"
"Wolverhampton City Council","http://opendatacommunities.org/id/metropolitan-district-council/wolverhampton","Staffordshire County Council","8004145346","5,723.55","Client Transport - SEN","130159305","24/02/2017","School Planning & Resources","Special - Transport","R3043"
"Wolverhampton City Council","http://opendatacommunities.org/id/metropolitan-district-council/wolverhampton","Staffs & West Midlands Probation Trust","SI 10459","4,375.01","Grant Payments","130153051","01/02/2017","Community Safety","SWP - Probation","R4700"
"Wolverhampton City Council","http://opendatacommunities.org/id/metropolitan-district-council/wolverhampton","Stanley Security Solutions Limited","75346833","1,552.56","Equipment - Purchase","190307988","03/02/2017","Fleet Services","Fleet Management","R4000"
"Wolverhampton City Council","http://opendatacommunities.org/id/metropolitan-district-council/wolverhampton","Stannah Lifts Limited","16/0583/SAG","3,178.00","Grants paid out","190307313","01/02/2017","-","Disabled Facilities Grants","C5000"
"Wolverhampton City Council","http://opendatacommunities.org/id/metropolitan-district-council/wolverhampton","Stannah Lifts Limited","14/1068/SAG","821.74","Grants paid out","190307741","03/02/2017","-","Disabled Facilities Grants","C5000"
"Wolverhampton City Council","http://opendatacommunities.org/id/metropolitan-district-council/wolverhampton","Stannah Lifts Limited","16/0734/SLM","130","Grants paid out","190313977","22/02/2017","-","Disabled Facilities Grants","C5000"
"Wolverhampton City Council","http://opendatacommunities.org/id/metropolitan-district-council/wolverhampton","Stannah Lifts Limited","16/0484/SAG","2,943.00","Grants paid out","190313972","22/02/2017","-","Disabled Facilities Grants","C5000"
"Wolverhampton City Council","http://opendatacommunities.org/id/metropolitan-district-council/wolverhampton","Stannah Lifts Limited","16/0625/SAG","2,893.00","Grants paid out","190313973","22/02/2017","-","Disabled Facilities Grants","C5000"
"Wolverhampton City Council","http://opendatacommunities.org/id/metropolitan-district-council/wolverhampton","Stannah Lifts Limited","16/0765/SLM","405","Grants paid out","190313968","22/02/2017","-","Disabled Facilities Grants","C5000"
"Wolverhampton City Council","http://opendatacommunities.org/id/metropolitan-district-council/wolverhampton","Stannah Lifts Limited","16/0184/SAG","3,037.00","Grants paid out","190313967","22/02/2017","-","Disabled Facilities Grants","C5000"
"Wolverhampton City Council","http://opendatacommunities.org/id/metropolitan-district-council/wolverhampton","Stannah Lifts Limited","16/0415/SAG","2,570.00","Grants paid out","190313971","22/02/2017","-","Disabled Facilities Grants","C5000"
"Wolverhampton City Council","http://opendatacommunities.org/id/metropolitan-district-council/wolverhampton","Stannah Lifts Limited","16/0535/SAG","615","Grants paid out","190313975","22/02/2017","-","Disabled Facilities Grants","C5000"
"Wolverhampton City Council","http://opendatacommunities.org/id/metropolitan-district-council/wolverhampton","Stannah Lifts Limited","16/0121/SAGa","150","Grants paid out","190312625","17/02/2017","-","Disabled Facilities Grants","C5000"
"Wolverhampton City Council","http://opendatacommunities.org/id/metropolitan-district-council/wolverhampton","Stannah Lifts Limited","16/0062/SAG","2,948.00","Grants paid out","190311790","15/02/2017","-","Disabled Facilities Grants","C5000"
"Wolverhampton City Council","http://opendatacommunities.org/id/metropolitan-district-council/wolverhampton","Stannah Lifts Limited","16/0210/SAG","5,110.00","Grants paid out","190311798","15/02/2017","-","Disabled Facilities Grants","C5000"
"Wolverhampton City Council","http://opendatacommunities.org/id/metropolitan-district-council/wolverhampton","Stannah Lifts Limited","16/0407/SAG","5,658.00","Grants paid out","190311799","15/02/2017","-","Disabled Facilities Grants","C5000"
"Wolverhampton City Council","http://opendatacommunities.org/id/metropolitan-district-council/wolverhampton","Stannah Lifts Limited","16/0260/SAG","800.93","Grants paid out","190311792","15/02/2017","-","Disabled Facilities Grants","C5000"
"Wolverhampton City Council","http://opendatacommunities.org/id/metropolitan-district-council/wolverhampton","Stannah Lifts Limited","16/0544/SAG","5,914.00","Grants paid out","190311793","15/02/2017","-","Disabled Facilities Grants","C5000"
"Wolverhampton City Council","http://opendatacommunities.org/id/metropolitan-district-council/wolverhampton","Stannah Limited/Stannah Lift Services","s085055578","1,013.00","Construction and Conversion","130154338","03/02/2017","-","Adaptations for People with Disabilites","C1100"
"Wolverhampton City Council","http://opendatacommunities.org/id/metropolitan-district-council/wolverhampton","Stannah Limited/Stannah Lift Services","s085055679","615","Construction and Conversion","130154339","03/02/2017","-","Adaptations for People with Disabilites","C1100"
"Wolverhampton City Council","http://opendatacommunities.org/id/metropolitan-district-council/wolverhampton","Stannah Limited/Stannah Lift Services","s085055482","4,829.00","Construction and Conversion","130154747","03/02/2017","-","Adaptations for People with Disabilites","C1100"
"Wolverhampton City Council","http://opendatacommunities.org/id/metropolitan-district-council/wolverhampton","Stannah Limited/Stannah Lift Services","s085054764","1,988.00","Construction and Conversion","130152903","01/02/2017","-","Adaptations for People with Disabilites","C1100"
"Wolverhampton City Council","http://opendatacommunities.org/id/metropolitan-district-council/wolverhampton","Stannah Limited/Stannah Lift Services","S085049807","4,579.00","Construction and Conversion","130141538","08/02/2017","-","Adaptations for People with Disabilites","C1100"
"Wolverhampton City Council","http://opendatacommunities.org/id/metropolitan-district-council/wolverhampton","Stannah Limited/Stannah Lift Services","S085002204","1,943.00","Construction and Conversion","130156392","08/02/2017","-","Adaptations for People with Disabilites","C1100"
"Wolverhampton City Council","http://opendatacommunities.org/id/metropolitan-district-council/wolverhampton","Stave-Con Limited","19716","50,000.00","Construction and Conversion","130154885","01/02/2017","-","GF - Managing Short Trips","C1100"
"Wolverhampton City Council","http://opendatacommunities.org/id/metropolitan-district-council/wolverhampton","Steertrak (UK) Limited","55774","90","Equipment - Purchase","190310319","12/02/2017","Fleet Services","Fleet Management","R4000"
"Wolverhampton City Council","http://opendatacommunities.org/id/metropolitan-district-council/wolverhampton","Steertrak (UK) Limited","56512","90","Services - Professional Fees","190307583","03/02/2017","Fleet Services","Fleet Management","R4400"
"Wolverhampton City Council","http://opendatacommunities.org/id/metropolitan-district-council/wolverhampton","Stone Group Limited/Stone Computers Ltd","1034483","520","Computing - Purchase of Hardware","130159574","22/02/2017","School Planning & Resources","Learning Technologies","R4530"
"Wolverhampton City Council","http://opendatacommunities.org/id/metropolitan-district-council/wolverhampton","Stoneleigh Consultancy Limited","45347","1,313.00","Computing - Purchase of Hardware","130154888","17/02/2017","Early Intervention","HOS Early Intervention","R4530"
"Wolverhampton City Council","http://opendatacommunities.org/id/metropolitan-district-council/wolverhampton","Stoneleigh Consultancy Limited","45352","1,547.12","Computing - Purchase of Hardware","130156607","17/02/2017","Early Intervention","HOS Early Intervention","R4530"
"Wolverhampton City Council","http://opendatacommunities.org/id/metropolitan-district-council/wolverhampton","Stoneleigh Consultancy Limited","45304","2,746.00","Plant, Equipment, Machinery & Computer Hardware","130153448","08/02/2017","-","GF - Leisure Centres Enhancement","C3000"
"Wolverhampton City Council","http://opendatacommunities.org/id/metropolitan-district-council/wolverhampton","Stoneleigh Consultancy Limited","45301","35,583.76","Computing - Purchase of Hardware","130153447","08/02/2017","ICTS","Strategic ICTS (ICT Service Budget)","R4530"
"Wolverhampton City Council","http://opendatacommunities.org/id/metropolitan-district-council/wolverhampton","Stoneleigh Consultancy Limited","42520","2,027.22","Computing - Purchase of Hardware","130153438","01/02/2017","ICTS","Strategic ICTS (ICT Service Budget)","R4530"
"Wolverhampton City Council","http://opendatacommunities.org/id/metropolitan-district-council/wolverhampton","Stoneleigh Consultancy Limited","42520","435.66","Computing - Purchase of Software","130153438","01/02/2017","ICTS","Strategic ICTS (ICT Service Budget)","R4531"
"Wolverhampton City Council","http://opendatacommunities.org/id/metropolitan-district-council/wolverhampton","Stoneleigh Consultancy Limited","42520","100.02","Computing - Purchase of Software","130153438","01/02/2017","ICTS","Strategic ICTS (ICT Service Budget)","R4531"
"Wolverhampton City Council","http://opendatacommunities.org/id/metropolitan-district-council/wolverhampton","Stoneleigh Consultancy Limited","45251","2,027.22","Computing - Purchase of Hardware","130153439","01/02/2017","ICTS","Strategic ICTS (ICT Service Budget)","R4530"
"Wolverhampton City Council","http://opendatacommunities.org/id/metropolitan-district-council/wolverhampton","Stoneleigh Consultancy Limited","45251","435.66","Computing - Purchase of Software","130153439","01/02/2017","ICTS","Strategic ICTS (ICT Service Budget)","R4531"
"Wolverhampton City Council","http://opendatacommunities.org/id/metropolitan-district-council/wolverhampton","Stoneleigh Consultancy Limited","45251","100.02","Computing - Purchase of Software","130153439","01/02/2017","ICTS","Strategic ICTS (ICT Service Budget)","R4531"
"Wolverhampton City Council","http://opendatacommunities.org/id/metropolitan-district-council/wolverhampton","Stoneleigh Consultancy Limited","45252","3,040.83","Computing - Purchase of Hardware","130153440","01/02/2017","ICTS","Strategic ICTS (ICT Service Budget)","R4530"
"Wolverhampton City Council","http://opendatacommunities.org/id/metropolitan-district-council/wolverhampton","Stoneleigh Consultancy Limited","45252","653.49","Computing - Purchase of Software","130153440","01/02/2017","ICTS","Strategic ICTS (ICT Service Budget)","R4531"
"Wolverhampton City Council","http://opendatacommunities.org/id/metropolitan-district-council/wolverhampton","Stoneleigh Consultancy Limited","45252","150.03","Computing - Purchase of Software","130153440","01/02/2017","ICTS","Strategic ICTS (ICT Service Budget)","R4531"
"Wolverhampton City Council","http://opendatacommunities.org/id/metropolitan-district-council/wolverhampton","Stoneleigh Consultancy Limited","45254","4,730.18","Computing - Purchase of Hardware","130153442","01/02/2017","ICTS","Strategic ICTS (ICT Service Budget)","R4530"
"Wolverhampton City Council","http://opendatacommunities.org/id/metropolitan-district-council/wolverhampton","Stoneleigh Consultancy Limited","45254","6,264.44","Computing - Purchase of Hardware","130153442","01/02/2017","ICTS","Strategic ICTS (ICT Service Budget)","R4530"
"Wolverhampton City Council","http://opendatacommunities.org/id/metropolitan-district-council/wolverhampton","Stoneleigh Consultancy Limited","45254","2,904.40","Computing - Purchase of Software","130153442","01/02/2017","ICTS","Strategic ICTS (ICT Service Budget)","R4531"
"Wolverhampton City Council","http://opendatacommunities.org/id/metropolitan-district-council/wolverhampton","Stoneleigh Consultancy Limited","45254","666.8","Computing - Purchase of Software","130153442","01/02/2017","ICTS","Strategic ICTS (ICT Service Budget)","R4531"
"Wolverhampton City Council","http://opendatacommunities.org/id/metropolitan-district-council/wolverhampton","Stoneleigh Consultancy Limited","45292","2,433.02","Computing - Purchase of Hardware","130153445","08/02/2017","Specialist Support","Head of Service Specialist Intensive Support Service","R4530"
"Wolverhampton City Council","http://opendatacommunities.org/id/metropolitan-district-council/wolverhampton","Stoneleigh Consultancy Limited","45293","1,630.36","Computing - Purchase of Hardware","130153446","08/02/2017","Early Intervention","HOS Early Intervention","R4530"
"Wolverhampton City Council","http://opendatacommunities.org/id/metropolitan-district-council/wolverhampton","Stoneleigh Consultancy Limited","45217 corr","-1,320.88","Computing - Purchase of Hardware","130157437","08/02/2017","ICTS","Strategic ICTS (ICT Service Budget)","R4530"
"Wolverhampton City Council","http://opendatacommunities.org/id/metropolitan-district-council/wolverhampton","Stoneleigh Consultancy Limited","45216","1,320.88","Computing - Purchase of Hardware","130149552","12/02/2017","ICTS","Strategic ICTS (ICT Service Budget)","R4530"
"Wolverhampton City Council","http://opendatacommunities.org/id/metropolitan-district-council/wolverhampton","Stoneleigh Consultancy Limited","45217A","1,981.32","Computing - Purchase of Hardware","130156606","12/02/2017","Specialist Support","Head of Service Specialist Intensive Support Service","R4530"
"Wolverhampton City Council","http://opendatacommunities.org/id/metropolitan-district-council/wolverhampton","Stoneleigh Consultancy Limited","45353","3,094.24","Computing - Purchase of Hardware","130156608","17/02/2017","School Planning & Resources","Building Schools for the Future (BSF)","R4530"
"Wolverhampton City Council","http://opendatacommunities.org/id/metropolitan-district-council/wolverhampton","Stoneleigh Consultancy Limited","45348","1,864.92","Computing - Purchase of Hardware","130154889","17/02/2017","School Planning & Resources","Building Schools for the Future (BSF)","R4530"
"Wolverhampton City Council","http://opendatacommunities.org/id/metropolitan-district-council/wolverhampton","Stoneleigh Consultancy Limited","45291","2,566.91","Computing - Purchase of Hardware","130153444","08/02/2017","ICTS","Strategic ICTS (ICT Service Budget)","R4530"
"Wolverhampton City Council","http://opendatacommunities.org/id/metropolitan-district-council/wolverhampton","Stoneleigh Consultancy Limited","45326","14,271.48","Computing - Purchase of Hardware","130154748","12/02/2017","ICTS","Strategic ICTS (ICT Service Budget)","R4530"
"Wolverhampton City Council","http://opendatacommunities.org/id/metropolitan-district-council/wolverhampton","Stoneleigh Consultancy Limited","45265","5,857.68","Computing - Purchase of Hardware","130153443","01/02/2017","ICTS","Strategic ICTS (ICT Service Budget)","R4530"
"Wolverhampton City Council","http://opendatacommunities.org/id/metropolitan-district-council/wolverhampton","Stoneleigh Consultancy Limited","45345","414","Computing - Purchase of Hardware","130154886","17/02/2017","Leisure Services","Aldersley Leisure Village","R4530"
"Wolverhampton City Council","http://opendatacommunities.org/id/metropolitan-district-council/wolverhampton","Stoneleigh Consultancy Limited","45346","112.5","Computing - Purchase of Hardware","130154887","17/02/2017","Leisure Services","Aldersley Leisure Village","R4530"
"Wolverhampton City Council","http://opendatacommunities.org/id/metropolitan-district-council/wolverhampton","Stratton St Meth Church Comm Account","1","732","Room Hire","130156966","17/02/2017","Skills","Employment Programmes","R2201"
"Wolverhampton City Council","http://opendatacommunities.org/id/metropolitan-district-council/wolverhampton","Summerhill School","P13669420170220","800","Grant Payments to Individuals","190313799","22/02/2017","Looked After Children","LAC Education Team (LACE)","R6402"
"Wolverhampton City Council","http://opendatacommunities.org/id/metropolitan-district-council/wolverhampton","Summerhill School","P13669420170220","800","Grant Payments to Individuals","190313799","22/02/2017","Looked After Children","LAC Education Team (LACE)","R6402"
"Wolverhampton City Council","http://opendatacommunities.org/id/metropolitan-district-council/wolverhampton","Summerhill School","P13669420170220","800","Grant Payments to Individuals","190313799","22/02/2017","Looked After Children","LAC Education Team (LACE)","R6402"
"Wolverhampton City Council","http://opendatacommunities.org/id/metropolitan-district-council/wolverhampton","Sunfield Childrens Homes Limited","8139","21,753.25","TPP - Independent Schools","130156967","08/02/2017","Standards and Vulnerable Pupils","SEN Education OOC","R5036"
"Wolverhampton City Council","http://opendatacommunities.org/id/metropolitan-district-council/wolverhampton","Sunrise Medical Limited","2537304","168.16","Equipment - Purchase","130155807","17/02/2017","Independent Living Service","Independent Living Service","R4000"
"Wolverhampton City Council","http://opendatacommunities.org/id/metropolitan-district-council/wolverhampton","Sunrise Medical Limited","2534197","546.4","Equipment - Purchase","130153980","03/02/2017","Independent Living Service","Independent Living Service","R4000"
"Wolverhampton City Council","http://opendatacommunities.org/id/metropolitan-district-council/wolverhampton","Sunrise Medical Limited","2537303","16.15","Equipment - Purchase","130155806","17/02/2017","Independent Living Service","Independent Living Service","R4000"
"Wolverhampton City Council","http://opendatacommunities.org/id/metropolitan-district-council/wolverhampton","Sunrise Medical Limited","2537303","145.35","Equipment - Purchase","130155806","17/02/2017","Independent Living Service","Independent Living Service","R4000"
"Wolverhampton City Council","http://opendatacommunities.org/id/metropolitan-district-council/wolverhampton","Sunrise Medical Limited","2534616","129.5","Equipment - Purchase","130154158","12/02/2017","Independent Living Service","Independent Living Service","R4000"
"Wolverhampton City Council","http://opendatacommunities.org/id/metropolitan-district-council/wolverhampton","Sunrise Medical Limited","2523946","809","Equipment - Purchase","130148591","08/02/2017","Independent Living Service","Independent Living Service","R4000"
"Wolverhampton City Council","http://opendatacommunities.org/id/metropolitan-district-council/wolverhampton","Sunrise Medical Limited","2536930","647.5","Equipment - Purchase","130155594","17/02/2017","Independent Living Service","Independent Living Service","R4000"
"Wolverhampton City Council","http://opendatacommunities.org/id/metropolitan-district-council/wolverhampton","Supra UK Limited TA The Keysafe Company","68665","3,750.00","Equipment - Purchase","130157816","15/02/2017","Housing Revenue Account - Communities","Carelink","R4000"
"Wolverhampton City Council","http://opendatacommunities.org/id/metropolitan-district-council/wolverhampton","Supra UK Limited TA The Keysafe Company","71329","3,750.00","Equipment - Purchase","130159576","22/02/2017","Independent Living Service","Telecare","R4000"
"Wolverhampton City Council","http://opendatacommunities.org/id/metropolitan-district-council/wolverhampton","Supreme Hygiene","TH/E 26392","131.3","Waste Management","130155091","01/02/2017","Early Intervention","EIP Locality 2 � Bilston/Rocket Pool","R2703"
"Wolverhampton City Council","http://opendatacommunities.org/id/metropolitan-district-council/wolverhampton","Supreme Hygiene","3465","35.04","Waste Management","130157316","12/02/2017","Early Intervention","EIP Locality 2 � Bilston/Rocket Pool","R2703"
"Wolverhampton City Council","http://opendatacommunities.org/id/metropolitan-district-council/wolverhampton","Swacs","245","2,800.00","Services - Professional Fees","130157584","15/02/2017","Looked After Children","Adoption and Residence Team & Allowances","R4400"
"Wolverhampton City Council","http://opendatacommunities.org/id/metropolitan-district-council/wolverhampton","Swann Systems (UK) Limited","IN1700447","56.8","Equipment - Purchase","190309547","08/02/2017","Fleet Services","Fleet Management","R4000"
"Wolverhampton City Council","http://opendatacommunities.org/id/metropolitan-district-council/wolverhampton","Sweet & Maxwell/Thomson Reuters","6800300299","953.37","Subscriptions","130156614","08/02/2017","Legal Services","Legal Services","R4701"
"Wolverhampton City Council","http://opendatacommunities.org/id/metropolitan-district-council/wolverhampton","Swift Maintnce Services (1973) Limited","20825","93.5","Equipment - R & M","130156968","08/02/2017","Leisure Services","WV Active Catering","R4003"
"Wolverhampton City Council","http://opendatacommunities.org/id/metropolitan-district-council/wolverhampton","Swift Maintnce Services (1973) Limited","20835","142.5","Equipment - Catering","130156969","15/02/2017","Visitor Economy","Art Gallery Tea Room","R4010"
"Wolverhampton City Council","http://opendatacommunities.org/id/metropolitan-district-council/wolverhampton","Swift Maintnce Services (1973) Limited","20520","1,550.28","Equipment - R & M","130152675","15/02/2017","Library Services","Blakenhall Community & Healthy Living Centre","R4003"
"Wolverhampton City Council","http://opendatacommunities.org/id/metropolitan-district-council/wolverhampton","Swift Maintnce Services (1973) Limited","20995","47.03","Equipment - R & M","130158465","15/02/2017","Catering","Education Catering - General Overheads","R4003"
"Wolverhampton City Council","http://opendatacommunities.org/id/metropolitan-district-council/wolverhampton","Swift Maintnce Services (1973) Limited","20995","9,358.96","Equipment - R & M","130158465","15/02/2017","Catering","Education Catering - General Overheads","R4003"
"Wolverhampton City Council","http://opendatacommunities.org/id/metropolitan-district-council/wolverhampton","Swift Maintnce Services (1973) Limited","20996","423","Equipment - R & M","130158466","15/02/2017","Catering","Education Catering - General Overheads","R4003"
"Wolverhampton City Council","http://opendatacommunities.org/id/metropolitan-district-council/wolverhampton","Swift Maintnce Services (1973) Limited","20998","592","Equipment - R & M","130158468","15/02/2017","Catering","Education Catering - General Overheads","R4003"
"Wolverhampton City Council","http://opendatacommunities.org/id/metropolitan-district-council/wolverhampton","Swift Maintnce Services (1973) Limited","20539","86.48","Equipment - R & M","130152678","22/02/2017","Leisure Services","WV Active Catering","R4003"
"Wolverhampton City Council","http://opendatacommunities.org/id/metropolitan-district-council/wolverhampton","Swift Maintnce Services (1973) Limited","20782","54.13","Equipment - R & M","130155808","17/02/2017","Learning Disability Provider","Ernest Bold Court","R4003"
"Wolverhampton City Council","http://opendatacommunities.org/id/metropolitan-district-council/wolverhampton","Swift Maintnce Services (1973) Limited","20815","116.62","Equipment - R & M","130155809","03/02/2017","Leisure Services","WV Active Catering","R4003"
"Wolverhampton City Council","http://opendatacommunities.org/id/metropolitan-district-council/wolverhampton","Swift Maintnce Services (1973) Limited","20820","3,395.84","Equipment - R & M","130155810","03/02/2017","Cleaning","Cleaning of Buildings - General","R4003"
"Wolverhampton City Council","http://opendatacommunities.org/id/metropolitan-district-council/wolverhampton","Swift Maintnce Services (1973) Limited","20997","883.5","Equipment - R & M","130158467","17/02/2017","Catering","Education Catering - General Overheads","R4003"
"Wolverhampton City Council","http://opendatacommunities.org/id/metropolitan-district-council/wolverhampton","Swift Maintnce Services (1973) Limited","20925","289.25","Equipment - Catering","130157317","12/02/2017","Visitor Economy","Art Gallery Tea Room","R4010"
"Wolverhampton City Council","http://opendatacommunities.org/id/metropolitan-district-council/wolverhampton","Swift Maintnce Services (1973) Limited","20504","47","Equipment - R & M","130152451","12/02/2017","Catering","Education Catering - General Overheads","R4003"
"Wolverhampton City Council","http://opendatacommunities.org/id/metropolitan-district-council/wolverhampton","Swift Maintnce Services (1973) Limited","20888","142.54","Equipment - R & M","130156970","12/02/2017","Leisure Services","Bert Williams Leisure Centre Caf�","R4003"
"Wolverhampton City Council","http://opendatacommunities.org/id/metropolitan-district-council/wolverhampton","Swift Maintnce Services (1973) Limited","20738","92.39","Equipment - Catering","130154749","08/02/2017","Older People Provider Services","Bradley Lodge Resource Centre","R4010"
"Wolverhampton City Council","http://opendatacommunities.org/id/metropolitan-district-council/wolverhampton","Swift Maintnce Services (1973) Limited","20717","5,313.00","Equipment - Catering","130154529","01/02/2017","Catering","Education Catering - General Overheads","R4010"
"Wolverhampton City Council","http://opendatacommunities.org/id/metropolitan-district-council/wolverhampton","Swift Maintnce Services (1973) Limited","20721","5,146.00","Services - Consultants","130154530","01/02/2017","Learning Disability Provider","Learning Disabilities Management","R4404"
"Wolverhampton City Council","http://opendatacommunities.org/id/metropolitan-district-council/wolverhampton","Swimrite Supplies Limited","381290","475.82","Materials for resale","130155595","22/02/2017","Leisure Services","Central Baths","R4008"
"Wolverhampton City Council","http://opendatacommunities.org/id/metropolitan-district-council/wolverhampton","Sypol Limited (Alcumus Group)","Y00000289 - INV","4,435.00","Subscriptions","130156615","15/02/2017","Audit Services","Health & Safety","R4701"
"Wolverhampton City Council","http://opendatacommunities.org/id/metropolitan-district-council/wolverhampton","T H White Limited","E76587","84.11","Equipment - Purchase","190307621","03/02/2017","Fleet Services","Fleet Management","R4000"
"Wolverhampton City Council","http://opendatacommunities.org/id/metropolitan-district-council/wolverhampton","T H White Limited","E76587","44.9","Equipment - Purchase","190307621","03/02/2017","Fleet Services","Fleet Management","R4000"
"Wolverhampton City Council","http://opendatacommunities.org/id/metropolitan-district-council/wolverhampton","T H White Limited","E76587","9.18","Equipment - Purchase","190307621","03/02/2017","Fleet Services","Fleet Management","R4000"
"Wolverhampton City Council","http://opendatacommunities.org/id/metropolitan-district-council/wolverhampton","T H White Limited","E76587","253.94","Equipment - Purchase","190307621","03/02/2017","Fleet Services","Fleet Management","R4000"
"Wolverhampton City Council","http://opendatacommunities.org/id/metropolitan-district-council/wolverhampton","T H White Limited","E76587","22.45","Equipment - Purchase","190307621","03/02/2017","Fleet Services","Fleet Management","R4000"
"Wolverhampton City Council","http://opendatacommunities.org/id/metropolitan-district-council/wolverhampton","T H White Limited","E76587","60.05","Equipment - Purchase","190307621","03/02/2017","Fleet Services","Fleet Management","R4000"
"Wolverhampton City Council","http://opendatacommunities.org/id/metropolitan-district-council/wolverhampton","T H White Limited","E76587","99.68","Equipment - Purchase","190307621","03/02/2017","Fleet Services","Fleet Management","R4000"
"Wolverhampton City Council","http://opendatacommunities.org/id/metropolitan-district-council/wolverhampton","T H White Limited","E76656","50.73","Equipment - Purchase","190309545","08/02/2017","Fleet Services","Fleet Management","R4000"
"Wolverhampton City Council","http://opendatacommunities.org/id/metropolitan-district-council/wolverhampton","T H White Limited","E76656","41.12","Equipment - Purchase","190309545","08/02/2017","Fleet Services","Fleet Management","R4000"
"Wolverhampton City Council","http://opendatacommunities.org/id/metropolitan-district-council/wolverhampton","T H White Limited","E76657","10.11","Equipment - Purchase","190309546","08/02/2017","Fleet Services","Fleet Management","R4000"
"Wolverhampton City Council","http://opendatacommunities.org/id/metropolitan-district-council/wolverhampton","T H White Limited","E76652","143.85","Equipment - Purchase","190307990","03/02/2017","Fleet Services","Fleet Management","R4000"
"Wolverhampton City Council","http://opendatacommunities.org/id/metropolitan-district-council/wolverhampton","T H White Limited","E76652","21.7","Equipment - Purchase","190307990","03/02/2017","Fleet Services","Fleet Management","R4000"
"Wolverhampton City Council","http://opendatacommunities.org/id/metropolitan-district-council/wolverhampton","T H White Limited","E76652","96.38","Equipment - Purchase","190307990","03/02/2017","Fleet Services","Fleet Management","R4000"
"Wolverhampton City Council","http://opendatacommunities.org/id/metropolitan-district-council/wolverhampton","T H White Limited","E76652","35.69","Equipment - Purchase","190307990","03/02/2017","Fleet Services","Fleet Management","R4000"
"Wolverhampton City Council","http://opendatacommunities.org/id/metropolitan-district-council/wolverhampton","T H White Limited","E76652","125.21","Equipment - Purchase","190307990","03/02/2017","Fleet Services","Fleet Management","R4000"
"Wolverhampton City Council","http://opendatacommunities.org/id/metropolitan-district-council/wolverhampton","T H White Limited","E76652","125.21","Equipment - Purchase","190307990","03/02/2017","Fleet Services","Fleet Management","R4000"
"Wolverhampton City Council","http://opendatacommunities.org/id/metropolitan-district-council/wolverhampton","T H White Limited","E76790","32.11","Equipment - Purchase","190311219","15/02/2017","Fleet Services","Fleet Management","R4000"
"Wolverhampton City Council","http://opendatacommunities.org/id/metropolitan-district-council/wolverhampton","T H White Limited","E76791","23.64","Equipment - Purchase","190311220","15/02/2017","Fleet Services","Fleet Management","R4000"
"Wolverhampton City Council","http://opendatacommunities.org/id/metropolitan-district-council/wolverhampton","T H White Limited","E76791","23.64","Equipment - Purchase","190311220","15/02/2017","Fleet Services","Fleet Management","R4000"
"Wolverhampton City Council","http://opendatacommunities.org/id/metropolitan-district-council/wolverhampton","T H White Limited","E76791","23.64","Equipment - Purchase","190311220","15/02/2017","Fleet Services","Fleet Management","R4000"
"Wolverhampton City Council","http://opendatacommunities.org/id/metropolitan-district-council/wolverhampton","T H White Limited","E74961","825","Materials","130157977","17/02/2017","Environmental Maintenance","Arbor Scheme","R4007"
"Wolverhampton City Council","http://opendatacommunities.org/id/metropolitan-district-council/wolverhampton","T H White Limited","616411","177.54","Equipment - Purchase","190310323","12/02/2017","Fleet Services","Fleet Management","R4000"
"Wolverhampton City Council","http://opendatacommunities.org/id/metropolitan-district-council/wolverhampton","T H White Limited","E76668","58","Equipment - Purchase","190310347","12/02/2017","Fleet Services","Fleet Management","R4000"
"Wolverhampton City Council","http://opendatacommunities.org/id/metropolitan-district-council/wolverhampton","T H White Limited","E76713","11.02","Equipment - Purchase","190310348","12/02/2017","Fleet Services","Fleet Management","R4000"
"Wolverhampton City Council","http://opendatacommunities.org/id/metropolitan-district-council/wolverhampton","T H White Limited","E76713","1.7","Equipment - Purchase","190310348","12/02/2017","Fleet Services","Fleet Management","R4000"
"Wolverhampton City Council","http://opendatacommunities.org/id/metropolitan-district-council/wolverhampton","T H White Limited","E76713","2.58","Equipment - Purchase","190310348","12/02/2017","Fleet Services","Fleet Management","R4000"
"Wolverhampton City Council","http://opendatacommunities.org/id/metropolitan-district-council/wolverhampton","T H White Limited","E76792","13.74","Equipment - Purchase","190310349","12/02/2017","Fleet Services","Fleet Management","R4000"
"Wolverhampton City Council","http://opendatacommunities.org/id/metropolitan-district-council/wolverhampton","T H White Limited","E76794","28.8","Equipment - Purchase","190313954","22/02/2017","Fleet Services","Fleet Management","R4000"
"Wolverhampton City Council","http://opendatacommunities.org/id/metropolitan-district-council/wolverhampton","T H White Limited","E76644","91.32","Equipment - Purchase","190307622","03/02/2017","Fleet Services","Fleet Management","R4000"
"Wolverhampton City Council","http://opendatacommunities.org/id/metropolitan-district-council/wolverhampton","T H White Limited","E76644","18.44","Equipment - Purchase","190307622","03/02/2017","Fleet Services","Fleet Management","R4000"
"Wolverhampton City Council","http://opendatacommunities.org/id/metropolitan-district-council/wolverhampton","T H White Limited","E76644","168.03","Equipment - Purchase","190307622","03/02/2017","Fleet Services","Fleet Management","R4000"
"Wolverhampton City Council","http://opendatacommunities.org/id/metropolitan-district-council/wolverhampton","T H White Limited","E76580","7.36","Equipment - Purchase","190307620","03/02/2017","Fleet Services","Fleet Management","R4000"
"Wolverhampton City Council","http://opendatacommunities.org/id/metropolitan-district-council/wolverhampton","T H White Limited","E76580","58.08","Equipment - Purchase","190307620","03/02/2017","Fleet Services","Fleet Management","R4000"
"Wolverhampton City Council","http://opendatacommunities.org/id/metropolitan-district-council/wolverhampton","T H White Limited","E76580","0.64","Equipment - Purchase","190307620","03/02/2017","Fleet Services","Fleet Management","R4000"
"Wolverhampton City Council","http://opendatacommunities.org/id/metropolitan-district-council/wolverhampton","T H White Limited","E76580","108.72","Equipment - Purchase","190307620","03/02/2017","Fleet Services","Fleet Management","R4000"
"Wolverhampton City Council","http://opendatacommunities.org/id/metropolitan-district-council/wolverhampton","Taylormade Castings Limited","7459","785","R&M - Departmental response (external)","130156120","08/02/2017","Environmental Maintenance","Parks - South West Area Management","R2003"
"Wolverhampton City Council","http://opendatacommunities.org/id/metropolitan-district-council/wolverhampton","Teach Me Education","7441 - Bacs Rejection","975","Agency Staff","130155871","01/02/2017","Schools","Colton Hills Community School","R1100"
"Wolverhampton City Council","http://opendatacommunities.org/id/metropolitan-district-council/wolverhampton","Teach Me Education","7442 - Bacs Rejection","925","Agency Staff","130155872","01/02/2017","Schools","Colton Hills Community School","R1100"
"Wolverhampton City Council","http://opendatacommunities.org/id/metropolitan-district-council/wolverhampton","Teacheractive Limited","219139","1,057.00","Agency Staff","130158562","17/02/2017","Schools","East Park Primary School","R1100"
"Wolverhampton City Council","http://opendatacommunities.org/id/metropolitan-district-council/wolverhampton","Technical Surfaces Limited","49913","550","R&M - Departmental planned (external)","130159306","22/02/2017","Leisure Services","Aldersley Leisure Village","R2001"
"Wolverhampton City Council","http://opendatacommunities.org/id/metropolitan-district-council/wolverhampton","Telent:Ttsl Traffic Signals/Technology UK","1101402","747.17","TPP - Maintenance Contractor - General","130156121","17/02/2017","Operation & Maintenance of Existing Network","Traffic Signals","R5720"
"Wolverhampton City Council","http://opendatacommunities.org/id/metropolitan-district-council/wolverhampton","Telent:Ttsl Traffic Signals/Technology UK","1101403","1,402.48","TPP - Maintenance Contractor - General","130156122","17/02/2017","Operation & Maintenance of Existing Network","Traffic Signals","R5720"
"Wolverhampton City Council","http://opendatacommunities.org/id/metropolitan-district-council/wolverhampton","Telent:Ttsl Traffic Signals/Technology UK","1101404","669.98","TPP - Maintenance Contractor - General","130156123","17/02/2017","Operation & Maintenance of Existing Network","Traffic Signals","R5720"
"Wolverhampton City Council","http://opendatacommunities.org/id/metropolitan-district-council/wolverhampton","Telent:Ttsl Traffic Signals/Technology UK","1101405","517.76","Equipment - R & M","130156124","17/02/2017","Operation & Maintenance of Existing Network","Traffic Signals","R4003"
"Wolverhampton City Council","http://opendatacommunities.org/id/metropolitan-district-council/wolverhampton","Telent:Ttsl Traffic Signals/Technology UK","1099170","1,800.00","Equipment - R & M","130158469","17/02/2017","Operation & Maintenance of Existing Network","Traffic Signals","R4003"
"Wolverhampton City Council","http://opendatacommunities.org/id/metropolitan-district-council/wolverhampton","Telent:Ttsl Traffic Signals/Technology UK","1100384","749.76","TPP - Maintenance Contractor - General","130155811","08/02/2017","Operation & Maintenance of Existing Network","Traffic Signals","R5720"
"Wolverhampton City Council","http://opendatacommunities.org/id/metropolitan-district-council/wolverhampton","Telent:Ttsl Traffic Signals/Technology UK","1100132","450","TPP - Maintenance Contractor - General","130156830","08/02/2017","Operation & Maintenance of Existing Network","Traffic Signals","R5720"
"Wolverhampton City Council","http://opendatacommunities.org/id/metropolitan-district-council/wolverhampton","Telent:Ttsl Traffic Signals/Technology UK","1100382","2,247.28","TPP - Rechargeable Works Costs","130156831","08/02/2017","Operation & Maintenance of Existing Network","UTC only � External Rechargeable Works","R5730"
"Wolverhampton City Council","http://opendatacommunities.org/id/metropolitan-district-council/wolverhampton","Telent:Ttsl Traffic Signals/Technology UK","1100383","885.1","TPP - Maintenance Contractor - General","130157184","08/02/2017","Operation & Maintenance of Existing Network","Traffic Signals","R5720"
"Wolverhampton City Council","http://opendatacommunities.org/id/metropolitan-district-council/wolverhampton","Telent:Ttsl Traffic Signals/Technology UK","2289 - Credit Note","-576","Construction and Conversion","130156211","08/02/2017","-","Integrated Transport","C1100"
"Wolverhampton City Council","http://opendatacommunities.org/id/metropolitan-district-council/wolverhampton","Telent:Ttsl Traffic Signals/Technology UK","1101165","1,934.68","Equipment - R & M","130154752","12/02/2017","Operation & Maintenance of Existing Network","Traffic Signals","R4003"
"Wolverhampton City Council","http://opendatacommunities.org/id/metropolitan-district-council/wolverhampton","Telent:Ttsl Traffic Signals/Technology UK","1101514","2,513.73","TPP - Rechargeable Works Costs","130156393","24/02/2017","Operation & Maintenance of Existing Network","UTC only � External Rechargeable Works","R5730"
"Wolverhampton City Council","http://opendatacommunities.org/id/metropolitan-district-council/wolverhampton","Telent:Ttsl Traffic Signals/Technology UK","1101164","201.36","Equipment - R & M","130154751","12/02/2017","Operation & Maintenance of Existing Network","Traffic Signals","R4003"
"Wolverhampton City Council","http://opendatacommunities.org/id/metropolitan-district-council/wolverhampton","Telent:Ttsl Traffic Signals/Technology UK","1101166","7,925.39","TPP - Rechargeable Works Costs","130154753","12/02/2017","Operation & Maintenance of Existing Network","UTC only � External Rechargeable Works","R5730"
"Wolverhampton City Council","http://opendatacommunities.org/id/metropolitan-district-council/wolverhampton","Telent:Ttsl Traffic Signals/Technology UK","1101163","7,200.08","Equipment - R & M","130154750","12/02/2017","Operation & Maintenance of Existing Network","Traffic Signals","R4003"
"Wolverhampton City Council","http://opendatacommunities.org/id/metropolitan-district-council/wolverhampton","Telewest Communications/Virgin Media","046213701/001/II 16","10.99","Comms - Telephone Call charges","130145645","08/02/2017","Housing Revenue Account - Communities","Carelink","R4505"
"Wolverhampton City Council","http://opendatacommunities.org/id/metropolitan-district-council/wolverhampton","Telewest Communications/Virgin Media","36800401017/0719","1,500.00","Comms - Telephone Rental","190309180","08/02/2017","ICTS","Strategic ICTS (ICT Service Budget)","R4504"
"Wolverhampton City Council","http://opendatacommunities.org/id/metropolitan-district-council/wolverhampton","Telewest Communications/Virgin Media","36800401017/0720","1,500.00","Comms - Telephone Rental","190309181","08/02/2017","ICTS","Strategic ICTS (ICT Service Budget)","R4504"
"Wolverhampton City Council","http://opendatacommunities.org/id/metropolitan-district-council/wolverhampton","Telewest Communications/Virgin Media","36800401017/0721","1,500.00","Comms - Telephone Rental","190309182","08/02/2017","ICTS","Strategic ICTS (ICT Service Budget)","R4504"
"Wolverhampton City Council","http://opendatacommunities.org/id/metropolitan-district-council/wolverhampton","Telewest Communications/Virgin Media","36800401017/0816","1,500.00","Comms - Telephone Rental","190309177","08/02/2017","ICTS","Strategic ICTS (ICT Service Budget)","R4504"
"Wolverhampton City Council","http://opendatacommunities.org/id/metropolitan-district-council/wolverhampton","Telewest Communications/Virgin Media","36800401017/0916","1,500.00","Comms - Telephone Rental","190309178","08/02/2017","ICTS","Strategic ICTS (ICT Service Budget)","R4504"
"Wolverhampton City Council","http://opendatacommunities.org/id/metropolitan-district-council/wolverhampton","Telewest Communications/Virgin Media","36800401017/1016","1,500.00","Comms - Telephone Rental","190309179","08/02/2017","ICTS","Strategic ICTS (ICT Service Budget)","R4504"
"Wolverhampton City Council","http://opendatacommunities.org/id/metropolitan-district-council/wolverhampton","Telewest Communications/Virgin Media","935695-013","459.17","Comms - Telephone Rental","190309170","08/02/2017","ICTS","Strategic ICTS (ICT Service Budget)","R4504"
"Wolverhampton City Council","http://opendatacommunities.org/id/metropolitan-district-council/wolverhampton","Telewest Communications/Virgin Media","39186401/1216","29,093.50","Comms - Telephone Rental","190309171","08/02/2017","ICTS","Strategic ICTS (ICT Service Budget)","R4504"
"Wolverhampton City Council","http://opendatacommunities.org/id/metropolitan-district-council/wolverhampton","Telewest Communications/Virgin Media","726457601/1116","7,114.85","Comms - Telephone Rental","190309173","08/02/2017","ICTS","Strategic ICTS (ICT Service Budget)","R4504"
"Wolverhampton City Council","http://opendatacommunities.org/id/metropolitan-district-council/wolverhampton","Telewest Communications/Virgin Media","037970501004/1216","4,242.00","Comms - Telephone Rental","190309175","08/02/2017","ICTS","Strategic ICTS (ICT Service Budget)","R4504"
"Wolverhampton City Council","http://opendatacommunities.org/id/metropolitan-district-council/wolverhampton","Telewest Communications/Virgin Media","037970501004/0117","4,242.00","Comms - Telephone Rental","190309176","08/02/2017","ICTS","Strategic ICTS (ICT Service Budget)","R4504"
"Wolverhampton City Council","http://opendatacommunities.org/id/metropolitan-district-council/wolverhampton","Telewest Communications/Virgin Media","726457601/1216","9,438.00","Comms - Telephone Rental","190309174","08/02/2017","ICTS","Strategic ICTS (ICT Service Budget)","R4504"
"Wolverhampton City Council","http://opendatacommunities.org/id/metropolitan-district-council/wolverhampton","Telewest Communications/Virgin Media","39186401/0117","25,734.07","Comms - Telephone Rental","190309172","08/02/2017","ICTS","Strategic ICTS (ICT Service Budget)","R4504"
"Wolverhampton City Council","http://opendatacommunities.org/id/metropolitan-district-council/wolverhampton","Telewest Communications/Virgin Media","044904201/001/0117","6","Comms - Telephone Call charges","130153812","01/02/2017","Housing Revenue Account - Communities","Carelink","R4505"
"Wolverhampton City Council","http://opendatacommunities.org/id/metropolitan-district-council/wolverhampton","Telford & Wrekin Council","4305650","1,300.00","Training Expenses","130154532","03/02/2017","Human Resources","Centralised Training","R1650"
"Wolverhampton City Council","http://opendatacommunities.org/id/metropolitan-district-council/wolverhampton","Terberg Matec UK Limited","96337637","832.13","Equipment - Purchase","190313949","22/02/2017","Fleet Services","Fleet Management","R4000"
"Wolverhampton City Council","http://opendatacommunities.org/id/metropolitan-district-council/wolverhampton","The Bigword Interpreting Serv. Limited","INV20162595","32","Services - Translation fees","130153238","03/02/2017","Youth Offending","Youth Offending Team","R4406"
"Wolverhampton City Council","http://opendatacommunities.org/id/metropolitan-district-council/wolverhampton","The Bigword Interpreting Serv. Limited","INV20162653","32","Services - Translation fees","130153456","03/02/2017","Youth Offending","Youth Offending Team","R4406"
"Wolverhampton City Council","http://opendatacommunities.org/id/metropolitan-district-council/wolverhampton","The Bigword Interpreting Serv. Limited","INV20162871","32","Services - Translation fees","130153820","12/02/2017","Child Protection","CIN/CP Social Work Unit - Area 5","R4406"
"Wolverhampton City Council","http://opendatacommunities.org/id/metropolitan-district-council/wolverhampton","The Bigword Interpreting Serv. Limited","INV20162933","48","Services - Translation fees","130153990","12/02/2017","Older People Assessment & Care Management","Assessment Team (West)","R4406"
"Wolverhampton City Council","http://opendatacommunities.org/id/metropolitan-district-council/wolverhampton","The Bigword Interpreting Serv. Limited","INV20162919","48","Services - Translation fees","130153988","12/02/2017","Child Protection","CIN/CP Social Work Unit - Area 2","R4406"
"Wolverhampton City Council","http://opendatacommunities.org/id/metropolitan-district-council/wolverhampton","The Bigword Interpreting Serv. Limited","INV20162572","48","Services - Professional Fees","130153059","03/02/2017","Older People Assessment & Care Management","Assessment Team (North)","R4400"
"Wolverhampton City Council","http://opendatacommunities.org/id/metropolitan-district-council/wolverhampton","The Bigword Interpreting Serv. Limited","INV20163576","64","Services - Translation fees","130155093","17/02/2017","Child Protection","CIN/CP Social Work Unit - Area 2","R4406"
"Wolverhampton City Council","http://opendatacommunities.org/id/metropolitan-district-council/wolverhampton","The Bigword Interpreting Serv. Limited","INV20163552","48","Services - Translation fees","130154895","17/02/2017","Older People Assessment & Care Management","Assessment Team (East)","R4406"
"Wolverhampton City Council","http://opendatacommunities.org/id/metropolitan-district-council/wolverhampton","The Bigword Interpreting Serv. Limited","INV20163889","32","Services - Translation fees","130155601","24/02/2017","Child Protection","CIN/CP S17  SW Unit - Area 5","R4406"
"Wolverhampton City Council","http://opendatacommunities.org/id/metropolitan-district-council/wolverhampton","The Bigword Interpreting Serv. Limited","INV20162808","48","Services - Translation fees","130153638","12/02/2017","Youth Offending","Youth Offending Team","R4406"
"Wolverhampton City Council","http://opendatacommunities.org/id/metropolitan-district-council/wolverhampton","The Bigword Interpreting Serv. Limited","INV20162910","64","Services - Translation fees","130153987","12/02/2017","Child Protection","CIN/CP S17  SW Unit - Area 5","R4406"
"Wolverhampton City Council","http://opendatacommunities.org/id/metropolitan-district-council/wolverhampton","The Bigword Interpreting Serv. Limited","80018019","307.02","Services - Translation fees","130158681","17/02/2017","Safeguarding","Head of Service Quality and Safeguarding","R4406"
"Wolverhampton City Council","http://opendatacommunities.org/id/metropolitan-district-council/wolverhampton","The Bigword Interpreting Serv. Limited","INV20163863","32","Services - Professional Fees","130155344","22/02/2017","Governance Services","Democratic Support","R4400"
"Wolverhampton City Council","http://opendatacommunities.org/id/metropolitan-district-council/wolverhampton","The Bigword Interpreting Serv. Limited","INV20163864","32","Services - Professional Fees","130155345","22/02/2017","Governance Services","Democratic Support","R4400"
"Wolverhampton City Council","http://opendatacommunities.org/id/metropolitan-district-council/wolverhampton","The Bigword Interpreting Serv. Limited","INV20163865","32","Services - Professional Fees","130155346","22/02/2017","Governance Services","Democratic Support","R4400"
"Wolverhampton City Council","http://opendatacommunities.org/id/metropolitan-district-council/wolverhampton","The Bigword Interpreting Serv. Limited","INV20163850","80","Services - Translation fees","130155339","22/02/2017","Child Protection","CIN/CP S17  SW Unit - Area 3","R4406"
"Wolverhampton City Council","http://opendatacommunities.org/id/metropolitan-district-council/wolverhampton","The Bigword Interpreting Serv. Limited","INV20163844","64","Services - Translation fees","130155336","22/02/2017","Child Protection","CIN/CP Social Work Unit - Area 2","R4406"
"Wolverhampton City Council","http://opendatacommunities.org/id/metropolitan-district-council/wolverhampton","The Bigword Interpreting Serv. Limited","INV20162596","32","Services - Translation fees","130153239","03/02/2017","Early Intervention","EIP Locality 5 � Whitmore Reans","R4406"
"Wolverhampton City Council","http://opendatacommunities.org/id/metropolitan-district-council/wolverhampton","The Bigword Interpreting Serv. Limited","INV20163095","48","Services - Professional Fees","130154347","17/02/2017","Looked After Children","Adoption and Residence Team & Allowances","R4400"
"Wolverhampton City Council","http://opendatacommunities.org/id/metropolitan-district-council/wolverhampton","The Bigword Interpreting Serv. Limited","INV20151957","64","Services - Professional Fees","130133427","08/02/2017","Children With Disabilities","Childrens with Disabilities Team","R4400"
"Wolverhampton City Council","http://opendatacommunities.org/id/metropolitan-district-council/wolverhampton","The Bigword Interpreting Serv. Limited","INV20152871","64","Services - Professional Fees","130135041","08/02/2017","Children With Disabilities","Childrens with Disabilities Team","R4400"
"Wolverhampton City Council","http://opendatacommunities.org/id/metropolitan-district-council/wolverhampton","The Bigword Interpreting Serv. Limited","INV20155921","64","Services - Professional Fees","130140159","08/02/2017","Children With Disabilities","Childrens with Disabilities Team","R4400"
"Wolverhampton City Council","http://opendatacommunities.org/id/metropolitan-district-council/wolverhampton","The Bigword Interpreting Serv. Limited","INV20158643","64","Services - Professional Fees","130145776","08/02/2017","Children With Disabilities","Childrens with Disabilities Team","R4400"
"Wolverhampton City Council","http://opendatacommunities.org/id/metropolitan-district-council/wolverhampton","The Bigword Interpreting Serv. Limited","INV20160343","64","Services - Professional Fees","130149198","08/02/2017","Children With Disabilities","Childrens with Disabilities Team","R4400"
"Wolverhampton City Council","http://opendatacommunities.org/id/metropolitan-district-council/wolverhampton","The Bigword Interpreting Serv. Limited","INV20160942","64","Services - Professional Fees","130150729","08/02/2017","Children With Disabilities","Childrens with Disabilities Team","R4400"
"Wolverhampton City Council","http://opendatacommunities.org/id/metropolitan-district-council/wolverhampton","The Bigword Interpreting Serv. Limited","INV20149355","72","Services - Professional Fees","130129779","08/02/2017","Children With Disabilities","Childrens with Disabilities Team","R4400"
"Wolverhampton City Council","http://opendatacommunities.org/id/metropolitan-district-council/wolverhampton","The Bigword Interpreting Serv. Limited","INV541290","25.16","Services - Professional Fees","130133872","08/02/2017","Children With Disabilities","Childrens with Disabilities Team","R4400"
"Wolverhampton City Council","http://opendatacommunities.org/id/metropolitan-district-council/wolverhampton","The Bigword Interpreting Serv. Limited","INV20158959","96","Services - Translation fees","130146597","15/02/2017","Child Protection","CIN/CP Social Work Unit - Area 3","R4406"
"Wolverhampton City Council","http://opendatacommunities.org/id/metropolitan-district-council/wolverhampton","The Bigword Interpreting Serv. Limited","INV20163084","32","Services - Translation fees","130154344","15/02/2017","Child Protection","CIN - Avenues MAST - Area 7","R4406"
"Wolverhampton City Council","http://opendatacommunities.org/id/metropolitan-district-council/wolverhampton","The Bigword Interpreting Serv. Limited","INV20163034","40","Services - Translation fees","130154341","12/02/2017","Children With Disabilities","Childrens with Disabilities Team","R4406"
"Wolverhampton City Council","http://opendatacommunities.org/id/metropolitan-district-council/wolverhampton","The Bigword Interpreting Serv. Limited","INV20162869","40","Services - Translation fees","130153818","12/02/2017","Older People Assessment & Care Management","Assessment Team (East)","R4406"
"Wolverhampton City Council","http://opendatacommunities.org/id/metropolitan-district-council/wolverhampton","The Bigword Interpreting Serv. Limited","INV20162778","88","Services - Translation fees","130153636","12/02/2017","Child Protection","CIN/CP Social Work Unit - Area 2","R4406"
"Wolverhampton City Council","http://opendatacommunities.org/id/metropolitan-district-council/wolverhampton","The Bigword Interpreting Serv. Limited","INV20162823","72","Services - Translation fees","130153640","12/02/2017","Older People Assessment & Care Management","Assessment Team (East)","R4406"
"Wolverhampton City Council","http://opendatacommunities.org/id/metropolitan-district-council/wolverhampton","The Bigword Interpreting Serv. Limited","INV20162716","48","Services - Translation fees","130153457","03/02/2017","Child Protection","CIN/CP Social Work Unit - Area 2","R4406"
"Wolverhampton City Council","http://opendatacommunities.org/id/metropolitan-district-council/wolverhampton","The Bigword Interpreting Serv. Limited","INV20163085","112","Services - Translation fees","130154345","15/02/2017","Child Protection","CIN/CP Social Work Unit - Area 6","R4406"
"Wolverhampton City Council","http://opendatacommunities.org/id/metropolitan-district-council/wolverhampton","The Bigword Interpreting Serv. Limited","INV20162741","40","Services - Translation fees","130153459","08/02/2017","Child Protection","CIN/CP S17  SW Unit - Area 8","R4406"
"Wolverhampton City Council","http://opendatacommunities.org/id/metropolitan-district-council/wolverhampton","The Bigword Interpreting Serv. Limited","INV20163087","48","Services - Translation fees","130154346","15/02/2017","Older People Assessment & Care Management","Assessment Team (West)","R4406"
"Wolverhampton City Council","http://opendatacommunities.org/id/metropolitan-district-council/wolverhampton","The Bigword Interpreting Serv. Limited","80018018","46.14","Services - Translation fees","130155812","03/02/2017","Safeguarding","Head of Service Quality and Safeguarding","R4406"
"Wolverhampton City Council","http://opendatacommunities.org/id/metropolitan-district-council/wolverhampton","The Bigword Interpreting Serv. Limited","INV554104","54.49","Services - Translation fees","130144758","03/02/2017","Child Protection","CIN/CP S17  SW Unit - Area 5","R4406"
"Wolverhampton City Council","http://opendatacommunities.org/id/metropolitan-district-council/wolverhampton","The Bigword Interpreting Serv. Limited","80018110","5.14","Services - Translation fees","130154754","17/02/2017","Child Protection","CIN - Avenues MAST - Area 7","R4406"
"Wolverhampton City Council","http://opendatacommunities.org/id/metropolitan-district-council/wolverhampton","The Bigword Interpreting Serv. Limited","INV20162885","44","Services - Professional Fees","130153982","12/02/2017","Independent Living Service","Independent Living Service","R4400"
"Wolverhampton City Council","http://opendatacommunities.org/id/metropolitan-district-council/wolverhampton","The Bigword Interpreting Serv. Limited","INV20162993","40","Services - Professional Fees","130154162","12/02/2017","Independent Living Service","Independent Living Service","R4400"
"Wolverhampton City Council","http://opendatacommunities.org/id/metropolitan-district-council/wolverhampton","The Bigword Interpreting Serv. Limited","INV20162837","32","Services - Professional Fees","130153814","12/02/2017","Governance Services","Democratic Support","R4400"
"Wolverhampton City Council","http://opendatacommunities.org/id/metropolitan-district-council/wolverhampton","The Bigword Interpreting Serv. Limited","INV20162812","32","Services - Translation fees","130153639","12/02/2017","Community Safety","Mediation Service","R4406"
"Wolverhampton City Council","http://opendatacommunities.org/id/metropolitan-district-council/wolverhampton","The Bigword Interpreting Serv. Limited","INV20163871","32","Services - Professional Fees","130155347","22/02/2017","Independent Living Service","Independent Living Service","R4400"
"Wolverhampton City Council","http://opendatacommunities.org/id/metropolitan-district-council/wolverhampton","The Bigword Interpreting Serv. Limited","INV20163173","32","Services - Translation fees","130154538","22/02/2017","Child Protection","CIN/CP S17  SW Unit - Area 4","R4406"
"Wolverhampton City Council","http://opendatacommunities.org/id/metropolitan-district-council/wolverhampton","The Bigword Interpreting Serv. Limited","INV558438","42.14","Services - Translation fees","130152702","22/02/2017","Child Protection","CIN/CP S17  SW Unit - Area 4","R4406"
"Wolverhampton City Council","http://opendatacommunities.org/id/metropolitan-district-council/wolverhampton","The Bigword Interpreting Serv. Limited","INV20163563","32","Services - Translation fees","130154898","22/02/2017","Child Protection","CIN/CP S17  SW Unit - Area 4","R4406"
"Wolverhampton City Council","http://opendatacommunities.org/id/metropolitan-district-council/wolverhampton","The Bigword Interpreting Serv. Limited","INV20162648","80","Services - Translation fees","130153455","22/02/2017","Child Protection","CIN/CP S17  SW Unit - Area 4","R4406"
"Wolverhampton City Council","http://opendatacommunities.org/id/metropolitan-district-council/wolverhampton","The Bigword Interpreting Serv. Limited","INV20163861","32","Services - Professional Fees","130155342","22/02/2017","Governance Services","Democratic Support","R4400"
"Wolverhampton City Council","http://opendatacommunities.org/id/metropolitan-district-council/wolverhampton","The Bigword Interpreting Serv. Limited","INV20163862","32","Services - Professional Fees","130155343","22/02/2017","Governance Services","Democratic Support","R4400"
"Wolverhampton City Council","http://opendatacommunities.org/id/metropolitan-district-council/wolverhampton","The Bigword Interpreting Serv. Limited","INV20162760","64","Services - Translation fees","130153461","22/02/2017","Child Protection","CIN/CP S17  SW Unit - Area 4","R4406"
"Wolverhampton City Council","http://opendatacommunities.org/id/metropolitan-district-council/wolverhampton","The Bigword Interpreting Serv. Limited","INV20162807","64","Services - Translation fees","130153637","22/02/2017","Child Protection","CIN/CP S17  SW Unit - Area 4","R4406"
"Wolverhampton City Council","http://opendatacommunities.org/id/metropolitan-district-council/wolverhampton","The Bigword Interpreting Serv. Limited","INV20162843","64","Services - Translation fees","130153816","22/02/2017","Child Protection","CIN/CP S17  SW Unit - Area 4","R4406"
"Wolverhampton City Council","http://opendatacommunities.org/id/metropolitan-district-council/wolverhampton","The Bigword Interpreting Serv. Limited","INV20162984","80","Services - Translation fees","130154161","22/02/2017","Child Protection","CIN/CP S17  SW Unit - Area 4","R4406"
"Wolverhampton City Council","http://opendatacommunities.org/id/metropolitan-district-council/wolverhampton","The Bigword Interpreting Serv. Limited","INV20162908","64","Services - Translation fees","130153985","22/02/2017","Child Protection","CIN/CP S17  SW Unit - Area 4","R4406"
"Wolverhampton City Council","http://opendatacommunities.org/id/metropolitan-district-council/wolverhampton","The Bigword Interpreting Serv. Limited","INV20162909","64","Services - Translation fees","130153986","22/02/2017","Child Protection","CIN/CP S17  SW Unit - Area 4","R4406"
"Wolverhampton City Council","http://opendatacommunities.org/id/metropolitan-district-council/wolverhampton","The Bigword Interpreting Serv. Limited","INV20162844","64","Services - Translation fees","130153817","22/02/2017","Child Protection","CIN/CP S17  SW Unit - Area 4","R4406"
"W<!DOCTYPE HTML PUBLIC "-//W3C//DTD HTML 3.2 Final//EN">
<HTML>
<HEAD>
<TITLE>Application Firewall Alert</TITLE>
<META NAME="ROBOTS" CONTENT="NOINDEX">
</HEAD>
<BODY text="#000000" vlink="#FF3300" link="#FF3300" bgcolor="#ffffff">
<TABLE cellspacing="5" cellpadding="3" width="410">
<TR>
<TD align="left">
<FONT face="Verdana,Arial,Helvetica" size="2">
<FONT size="3"><B>Application Firewall Alert</B></FONT><BR><BR><BR>
Your request triggered an alert! If you feel that you have received this page in error, please contact the administrator of this web site.
<BR>
<HR>
</TD>
</TR>
</TABLE>
</BODY>
</HTML>